Workbook

Sheet Data
A1: 2015 National College Club Championship
A3: Data Sheet | D3: T | E3: T | F3: Smallbore | P3: Air
A4: COMP# | B4: Competitor | C4: College | D4: SB | E4: AR | F4: P-1 | G4: P-2 | H4: Prone | I4: S-1 | J4: S-2 | K4: Standing | L4: K-1 | M4: K-2 | N4: Kneeling | O4: SB AGG | P4: A-1 | Q4: A-2 | R4: A-3 | S4: A-4 | T4: A-5 | U4: A-6 | V4: Air
A5: 200 | B5: Charles M. Beaver | C5: Purdue | D5: 1 | E5: 1 | F5: 95 | G5: 93 | H5: =SUM(F5:G5) -> 188 | I5: 73 | J5: 81 | K5: =SUM(I5:J5) -> 154 | L5: 82 | M5: 90 | N5: =SUM(L5:M5) -> 172 | O5: =SUM(H5+K5+N5) -> 514 | P5: 91 | Q5: 85 | R5: 89 | S5: 89 | T5: 89 | U5: 90 | V5: =SUM(P5:U5) -> 533
A6: 201 | B6: Nicholas P Demsher | C6: Purdue | D6: 0 | E6: 0 | F6: 90 | G6: 88 | H6: 178 | I6: 72 | J6: 72 | K6: 144 | L6: 82 | M6: 77 | N6: =SUM(L6:M6) -> 159 | O6: =SUM(H6+K6+N6) -> 481 | P6: 75 | Q6: 86 | R6: 86 | S6: 84 | T6: 81 | U6: 78 | V6: 490
A7: 202 | B7: Mat Amore | C7: Purdue | D7: 1 | E7: 1 | F7: 96 | G7: 94 | H7: =SUM(F7:G7) -> 190 | I7: 78 | J7: 74 | K7: =SUM(I7:J7) -> 152 | L7: 93 | M7: 85 | N7: 178 | O7: 520 | P7: 90 | Q7: 91 | R7: 89 | S7: 90 | T7: 91 | U7: 91 | V7: 542
A8: 203 | B8: Cecily M. Keihn | C8: Purdue | D8: 0 | E8: 0 | F8: 88 | G8: 82 | H8: 170 | I8: 76 | J8: 71 | K8: 147 | L8: 68 | M8: 66 | N8: 134 | O8: 451 | P8: 92 | Q8: 89 | R8: 91 | S8: 94 | T8: 84 | U8: 87 | V8: 537
A9: 204 | B9: Addie M. Walters | C9: Purdue | D9: 0 | E9: 0 | F9: 88 | G9: 94 | H9: 182 | I9: 76 | J9: 69 | K9: 145 | L9: 86 | M9: 84 | N9: 170 | O9: 497 | P9: 84 | Q9: 85 | R9: 90 | S9: 92 | T9: 85 | U9: 86 | V9: 522
A10: 205 | B10: Lake A. Yoke | C10: Purdue | D10: 1 | E10: 1 | F10: 94 | G10: 95 | H10: 189 | I10: 71 | J10: 66 | K10: 137 | L10: 86 | M10: 86 | N10: 172 | O10: 498 | P10: 88 | Q10: 88 | R10: 89 | S10: 86 | T10: 93 | U10: 88 | V10: =SUM(P10:U10) -> 532
A11: 206 | B11: Nathan Haines | C11: Purdue | D11: 1 | E11: 1 | F11: 94 | G11: 95 | H11: 189 | I11: 87 | J11: 80 | K11: 167 | L11: 92 | M11: 78 | N11: 170 | O11: 526 | P11: 94 | Q11: 97 | R11: 96 | S11: 96 | T11: 93 | U11: 93 | V11: 569
A12: 207 | B12: Ryan Reichert | C12: Purdue | D12: 0 | E12: 0 | F12: 93 | G12: 94 | H12: 187 | I12: 65 | J12: 66 | K12: 131 | L12: 83 | M12: 88 | N12: 171 | O12: 489 | P12: 78 | Q12: 75 | R12: 85 | S12: 84 | T12: 85 | U12: 86 | V12: 493
A13: 208 | B13: Devan Baker | C13: Purdue | D13: 0 | E13: 0 | F13: 94 | G13: 95 | H13: 189 | I13: 81 | J13: 73 | K13: 154 | L13: 82 | M13: 81 | N13: 163 | O13: 506 | P13: 85 | Q13: 90 | R13: 85 | S13: 91 | T13: 92 | U13: 93 | V13: 536
A14: 209 | B14: Alexander S. Venturino | C14: Purdue | D14: 0 | E14: 0 | F14: 88 | G14: 92 | H14: =SUM(F14:G14) -> 180 | I14: 65 | J14: 82 | K14: =SUM(I14:J14) -> 147 | L14: 82 | M14: 78 | N14: 160 | O14: 487 | P14: 84 | Q14: 83 | R14: 89 | S14: 85 | T14: 83 | U14: 79 | V14: =SUM(P14:U14) -> 503
A15: 210 | B15: Charlotte Gullquist | C15: Lincoln Christian | D15: 0 | E15: 0 | F15: 0 | G15: 0 | H15: 0 | I15: 0 | J15: 0 | K15: 0 | L15: 0 | M15: 0 | N15: 0 | O15: 0 | P15: 92 | Q15: 94 | R15: 90 | S15: 95 | T15: 94 | U15: 91 | V15: 556
A16: 211 | B16: John Finegan | C16: U of Ill. C/U | D16: 0 | E16: 0 | F16: 97 | G16: 96 | H16: 193 | I16: 85 | J16: 90 | K16: 175 | L16: 93 | M16: 94 | N16: 187 | O16: 555 | P16: 93 | Q16: 93 | R16: 98 | S16: 91 | T16: 84 | U16: 91 | V16: 550
A17: 212 | B17: Bennett E. Christianson | C17: ND State College of Science | D17: 0 | E17: 0 | F17: 96 | G17: 98 | H17: 194 | I17: 84 | J17: 87 | K17: 171 | L17: 86 | M17: 87 | N17: 173 | O17: 538 | P17: 92 | Q17: 92 | R17: 95 | S17: 90 | T17: 93 | U17: 93 | V17: 555
A18: 213 | B18: Kyle Boster | C18: NDSU | D18: 1 | E18: 0 | F18: 96 | G18: 80 | H18: 176 | I18: 78 | J18: 75 | K18: 153 | L18: 85 | M18: 85 | N18: 170 | O18: 499 | P18: 87 | Q18: 83 | R18: 91 | S18: 86 | T18: 63 | U18: 79 | V18: 489
A19: 214 | B19: LaCrisha D. Meyer | C19: NDSU | D19: 0 | E19: 1 | F19: 0 | G19: 0 | H19: 0 | I19: 0 | J19: 0 | K19: 0 | L19: 0 | M19: 0 | N19: 0 | O19: 0 | P19: 91 | Q19: 82 | R19: 82 | S19: 85 | T19: 75 | U19: 81 | V19: 496
A20: 215 | B20: Samantha J. Holweger | C20: NDSU | D20: 0 | E20: 1 | F20: 0 | G20: 0 | H20: 0 | I20: 0 | J20: 0 | K20: 0 | L20: 0 | M20: 0 | N20: 0 | O20: 0 | P20: 87 | Q20: 90 | R20: 89 | S20: 85 | T20: 83 | U20: 86 | V20: 520
A21: 216 | B21: Kellen M. Erickson | C21: NDSU | D21: 1 | E21: 0 | F21: 90 | G21: 94 | H21: 184 | I21: 57 | J21: 59 | K21: 116 | L21: 79 | M21: 69 | N21: 148 | O21: 448 | P21: 0 | Q21: 0 | R21: 0 | S21: 0 | T21: 0 | U21: 0 | V21: 0
A22: 217 | B22: Levi J. Joraanstad | C22: NDSU | D22: 1 | E22: 0 | F22: 84 | G22: 81 | H22: 165 | I22: 47 | J22: 34 | K22: 81 | L22: 55 | M22: 69 | N22: 124 | O22: 370 | P22: 0 | Q22: 0 | R22: 0 | S22: 0 | T22: 0 | U22: 0 | V22: 0
A23: 218 | B23: Alex M. Heinle | C23: NDSU | D23: 0 | E23: 1 | F23: 0 | G23: 0 | H23: 0 | I23: 0 | J23: 0 | K23: 0 | L23: 0 | M23: 0 | N23: 0 | O23: 0 | P23: 83 | Q23: 84 | R23: 74 | S23: 71 | T23: 80 | U23: 86 | V23: 478
A24: 219 | B24: Logan J. Berg | C24: NDSU | D24: 0 | E24: 0 | F24: 89 | G24: 93 | H24: 182 | I24: 73 | J24: 69 | K24: 142 | L24: 86 | M24: 89 | N24: 175 | O24: 499 | P24: 86 | Q24: 90 | R24: 84 | S24: 89 | T24: 79 | U24: 93 | V24: 521
A25: 220 | B25: Bryce K. Lynne | C25: NDSU | D25: 0 | E25: 1 | F25: 0 | G25: 0 | H25: 0 | I25: 0 | J25: 0 | K25: 0 | L25: 0 | M25: 0 | N25: 0 | O25: 0 | P25: 84 | Q25: 83 | R25: 85 | S25: 85 | T25: 85 | U25: 82 | V25: 504
A26: 221 | B26: Robert Nelson II | C26: NDSU | D26: 1 | E26: 0 | F26: 87 | G26: 78 | H26: 165 | I26: 71 | J26: 70 | K26: 141 | L26: 87 | M26: 82 | N26: 169 | O26: 475 | P26: 91 | Q26: 89 | R26: 90 | S26: 91 | T26: 88 | U26: 92 | V26: 541
A27: 222 | B27: Zachary O. Chism | C27: ISU-ROTC | D27: 1 | E27: 1 | F27: 92 | G27: 91 | H27: 183 | I27: 66 | J27: 79 | K27: 145 | L27: 91 | M27: 81 | N27: 172 | O27: 500 | P27: 92 | Q27: 83 | R27: 88 | S27: 86 | T27: 92 | U27: 85 | V27: 526
A28: 223 | B28: Alyssa L. Hirsch | C28: ISU-ROTC | D28: 1 | E28: 1 | F28: 90 | G28: 91 | H28: 181 | I28: 68 | J28: 72 | K28: 140 | L28: 69 | M28: 71 | N28: 140 | O28: 461 | P28: 84 | Q28: 86 | R28: 81 | S28: 85 | T28: 79 | U28: 80 | V28: 495
A29: 224 | B29: Ian C. Marquez | C29: ISU-ROTC | D29: 1 | E29: 1 | F29: 94 | G29: 89 | H29: 183 | I29: 68 | J29: 71 | K29: 139 | L29: 87 | M29: 82 | N29: 169 | O29: 491 | P29: 86 | Q29: 80 | R29: 85 | S29: 87 | T29: 88 | U29: 81 | V29: 507
A30: 225 | B30: Alex R. Plimpton | C30: ISU-ROTC | D30: 1 | E30: 1 | F30: 96 | G30: 95 | H30: 191 | I30: 73 | J30: 80 | K30: 153 | L30: 85 | M30: 80 | N30: 165 | O30: 509 | P30: 89 | Q30: 84 | R30: 81 | S30: 81 | T30: 84 | U30: 84 | V30: 503
A31: 226 | B31: Elizabeth M. Harty | C31: University of Michigan | D31: 0 | E31: 1 | F31: 95 | G31: 95 | H31: 190 | I31: 87 | J31: 83 | K31: 170 | L31: 89 | M31: 84 | N31: 173 | O31: 533 | P31: 95 | Q31: 94 | R31: 97 | S31: 92 | T31: 91 | U31: 92 | V31: 561
A32: 227 | B32: Amanda L. Trevino | C32: University of Michigan | D32: 0 | E32: 0 | F32: 92 | G32: 94 | H32: 186 | I32: 62 | J32: 60 | K32: 122 | L32: 88 | M32: 83 | N32: 171 | O32: 479 | P32: 84 | Q32: 90 | R32: 88 | S32: 89 | T32: 91 | U32: 87 | V32: 529
A33: 228 | B33: Will Kerkstra | C33: University of Michigan | D33: 0 | E33: 0 | F33: 94 | G33: 95 | H33: 189 | I33: 75 | J33: 78 | K33: 153 | L33: 85 | M33: 88 | N33: 173 | O33: 515 | P33: 84 | Q33: 91 | R33: 86 | S33: 83 | T33: 84 | U33: 92 | V33: 520
A34: 229 | B34: William Scola | C34: University of Michigan | D34: 0 | E34: 0 | F34: 90 | G34: 93 | H34: 183 | I34: 68 | J34: 73 | K34: 141 | L34: 86 | M34: 81 | N34: 167 | O34: 491 | P34: 85 | Q34: 89 | R34: 81 | S34: 79 | T34: 86 | U34: 83 | V34: 503
A35: 230 | B35: Hunter L. Benitez | C35: University of Michigan | D35: 0 | E35: 0 | F35: 91 | G35: 90 | H35: 181 | I35: 72 | J35: 65 | K35: 137 | L35: 75 | M35: 80 | N35: 155 | O35: 473 | P35: 80 | Q35: 77 | R35: 84 | S35: 60 | T35: 71 | U35: 82 | V35: 454
A36: 231 | B36: Rolf Bates | C36: University of Michigan | D36: 0 | E36: 0 | F36: 89 | G36: 92 | H36: 181 | I36: 68 | J36: 60 | K36: 128 | L36: 68 | M36: 69 | N36: 137 | O36: 446 | P36: 74 | Q36: 91 | R36: 89 | S36: 80 | T36: 85 | U36: 90 | V36: 509
A37: 232 | B37: Jay W. Patrick | C37: University of Michigan | D37: 0 | E37: 0 | F37: 90 | G37: 96 | H37: 186 | I37: 60 | J37: 66 | K37: 126 | L37: 82 | M37: 66 | N37: 148 | O37: 460 | P37: 81 | Q37: 90 | R37: 86 | S37: 89 | T37: 86 | U37: 89 | V37: 521
A38: 233 | B38: Megan Chen | C38: University of Michigan | D38: 0 | E38: 0 | F38: 89 | G38: 95 | H38: 184 | I38: 80 | J38: 78 | K38: 158 | L38: 90 | M38: 89 | N38: 179 | O38: 521 | P38: 90 | Q38: 89 | R38: 91 | S38: 94 | T38: 89 | U38: 91 | V38: 544
A39: 234 | B39: Sarah Park | C39: University of Michigan | D39: 0 | E39: 0 | F39: 92 | G39: 93 | H39: 185 | I39: 71 | J39: 64 | K39: 135 | L39: 91 | M39: 70 | N39: 161 | O39: 481 | P39: 88 | Q39: 92 | R39: 84 | S39: 89 | T39: 86 | U39: 88 | V39: 527
A40: 235 | B40: Marissa Brodbeck | C40: University of Michigan | D40: 0 | E40: 0 | F40: 90 | G40: 92 | H40: 182 | I40: 81 | J40: 74 | K40: 155 | L40: 88 | M40: 80 | N40: 168 | O40: 505 | P40: 92 | Q40: 92 | R40: 93 | S40: 91 | T40: 90 | U40: 86 | V40: 544
A41: 236 | B41: Ying Yi Liu | C41: University of Michigan | D41: 1 | E41: 1 | F41: 93 | G41: 91 | H41: 184 | I41: 71 | J41: 84 | K41: 155 | L41: 87 | M41: 86 | N41: 173 | O41: 512 | P41: 97 | Q41: 94 | R41: 95 | S41: 97 | T41: 97 | U41: 96 | V41: 576
A42: 237 | B42: Nichole Constine | C42: University of Michigan | D42: 0 | E42: 0 | F42: 94 | G42: 90 | H42: 184 | I42: 74 | J42: 85 | K42: 159 | L42: 83 | M42: 83 | N42: 166 | O42: 509 | P42: 88 | Q42: 89 | R42: 90 | S42: 93 | T42: 93 | U42: 93 | V42: 546
A43: 238 | B43: Windy Zhu | C43: University of Michigan | D43: 0 | E43: 0 | F43: 91 | G43: 76 | H43: 167 | I43: 72 | J43: 55 | K43: 127 | L43: 90 | M43: 76 | N43: 166 | O43: 460 | P43: 91 | Q43: 88 | R43: 90 | S43: 88 | T43: 93 | U43: 95 | V43: 545
A44: 239 | B44: Katie Wilcoxson | C44: University of Michigan | D44: 1 | E44: 0 | F44: 92 | G44: 96 | H44: 188 | I44: 78 | J44: 70 | K44: 148 | L44: 77 | M44: 70 | N44: 147 | O44: 483 | P44: 89 | Q44: 89 | R44: 92 | S44: 94 | T44: 91 | U44: 91 | V44: 546
A45: 240 | B45: Gerald J. St James II | C45: University of Michigan | D45: 0 | E45: 0 | F45: 93 | G45: 91 | H45: 184 | I45: 79 | J45: 76 | K45: 155 | L45: 91 | M45: 89 | N45: 180 | O45: 519 | P45: 89 | Q45: 91 | R45: 92 | S45: 92 | T45: 94 | U45: 92 | V45: 550
A46: 241 | B46: Anne Sullivan | C46: University of Michigan | D46: 1 | E46: 1 | F46: 91 | G46: 93 | H46: 184 | I46: 87 | J46: 88 | K46: 175 | L46: 87 | M46: 91 | N46: 178 | O46: 537 | P46: 93 | Q46: 92 | R46: 97 | S46: 95 | T46: 92 | U46: 94 | V46: 563
A47: 242 | B47: Aaron Ward | C47: University of Michigan | D47: 1 | E47: 1 | F47: 93 | G47: 96 | H47: 189 | I47: 86 | J47: 93 | K47: 179 | L47: 89 | M47: 91 | N47: 180 | O47: 548 | P47: 93 | Q47: 94 | R47: 97 | S47: 92 | T47: 98 | U47: 94 | V47: 568
A48: 243 | B48: Isabel A. Cusack | C48: University of Michigan | D48: 0 | E48: 0 | F48: 79 | G48: 84 | H48: 163 | I48: 79 | J48: 76 | K48: 155 | L48: 74 | M48: 82 | N48: 156 | O48: 474 | P48: 87 | Q48: 86 | R48: 88 | S48: 93 | T48: 87 | U48: 92 | V48: 533
A49: 244 | B49: Travis T. Burch | C49: University of Michigan | D49: 0 | E49: 0 | F49: 87 | G49: 87 | H49: 174 | I49: 58 | J49: 63 | K49: 121 | L49: 80 | M49: 76 | N49: 156 | O49: 451 | P49: 82 | Q49: 82 | R49: 84 | S49: 81 | T49: 81 | U49: 78 | V49: 488
A50: 245 | B50: Rohit S. Palayekar | C50: University of Michigan | D50: 0 | E50: 0 | F50: 69 | G50: 69 | H50: 138 | I50: 64 | J50: 62 | K50: 126 | L50: 70 | M50: 64 | N50: 134 | O50: 398 | P50: 87 | Q50: 76 | R50: 85 | S50: 85 | T50: 88 | U50: 85 | V50: 506
A51: 246 | B51: Christine E. Beck | C51: Clemson | D51: 1 | E51: 1 | F51: 89 | G51: 87 | H51: 176 | I51: 78 | J51: 70 | K51: 148 | L51: 85 | M51: 80 | N51: 165 | O51: 489 | P51: 92 | Q51: 94 | R51: 94 | S51: 92 | T51: 92 | U51: 94 | V51: 558
A52: 247 | B52: Rachel M Mangan | C52: Clemson | D52: 1 | E52: 1 | F52: 94 | G52: 97 | H52: 191 | I52: 91 | J52: 89 | K52: 180 | L52: 97 | M52: 93 | N52: 190 | O52: 561 | P52: 95 | Q52: 95 | R52: 96 | S52: 95 | T52: 97 | U52: 98 | V52: 576
A53: 248 | B53: Geoffry D. Graves | C53: Clemson | D53: 1 | E53: 1 | F53: 93 | G53: 96 | H53: 189 | I53: 84 | J53: 80 | K53: 164 | L53: 73 | M53: 91 | N53: 164 | O53: 517 | P53: 95 | Q53: 90 | R53: 94 | S53: 90 | T53: 94 | U53: 90 | V53: 553
A54: 249 | B54: Brent Parker | C54: Clemson | D54: 0 | E54: 0 | F54: 76 | G54: 86 | H54: 162 | I54: 67 | J54: 65 | K54: 132 | L54: 68 | M54: 72 | N54: 140 | O54: 434 | P54: 90 | Q54: 88 | R54: 86 | S54: 87 | T54: 87 | U54: 77 | V54: 515
A55: 250 | B55: Kevin M. Tuten | C55: Clemson | D55: 1 | E55: 1 | F55: 94 | G55: 94 | H55: 188 | I55: 85 | J55: 86 | K55: 171 | L55: 85 | M55: 88 | N55: 173 | O55: 532 | P55: 95 | Q55: 95 | R55: 94 | S55: 93 | T55: 94 | U55: 94 | V55: 565
A56: 251 | B56: Joseph W. Hendricks | C56: Akron-Zips Rifle Club | D56: 1 | E56: 1 | F56: 94 | G56: 90 | H56: 184 | I56: 85 | J56: 85 | K56: 170 | L56: 77 | M56: 70 | N56: 147 | O56: 501 | P56: 90 | Q56: 96 | R56: 91 | S56: 92 | T56: 88 | U56: 92 | V56: 549
A57: 252 | B57: Marlee N. Reynolds | C57: Akron-Zips Rifle Club | D57: 1 | E57: 1 | F57: 93 | G57: 91 | H57: 184 | I57: 75 | J57: 84 | K57: 159 | L57: 92 | M57: 80 | N57: 172 | O57: 515 | P57: 90 | Q57: 95 | R57: 95 | S57: 94 | T57: 92 | U57: 89 | V57: 555
A58: 253 | B58: Josh S. Hoffman | C58: Akron-Zips Rifle Club | D58: 1 | E58: 1 | F58: 79 | G58: 82 | H58: 161 | I58: 41 | J58: 58 | K58: 99 | L58: 69 | M58: 80 | N58: 149 | O58: 409 | P58: 83 | Q58: 74 | R58: 59 | S58: 71 | T58: 61 | U58: 65 | V58: 413
A59: 254 | B59: Christopher D. Catalano | C59: Akron-Zips Rifle Club | D59: 1 | E59: 1 | F59: 81 | G59: 84 | H59: 165 | I59: 50 | J59: 45 | K59: 95 | L59: 64 | M59: 64 | N59: 128 | O59: 388 | P59: 70 | Q59: 72 | R59: 65 | S59: 72 | T59: 85 | U59: 76 | V59: 440
A60: 255 | B60: Taylor D. Renick | C60: WVU | D60: 1 | E60: 1 | F60: 92 | G60: 97 | H60: 189 | I60: 76 | J60: 80 | K60: 156 | L60: 89 | M60: 92 | N60: 181 | O60: 526 | P60: 95 | Q60: 96 | R60: 94 | S60: 95 | T60: 94 | U60: 96 | V60: 570
A61: 256 | B61: Nathan E.Banta | C61: WVU | D61: 0 | E61: 1 | F61: 0 | G61: 0 | H61: 0 | I61: 0 | J61: 0 | K61: 0 | L61: 0 | M61: 0 | N61: 0 | O61: 0 | P61: 92 | Q61: 97 | R61: 86 | S61: 92 | T61: 94 | U61: 95 | V61: 556
A62: 257 | B62: Abigail R. Bache | C62: WVU | D62: 0 | E62: 0 | F62: 95 | G62: 95 | H62: 190 | I62: 77 | J62: 76 | K62: 153 | L62: 77 | M62: 77 | N62: 154 | O62: 497 | P62: 0 | Q62: 0 | R62: 0 | S62: 0 | T62: 0 | U62: 0 | V62: 0
A63: 258 | B63: Anthony M. Cali | C63: WVU | D63: 1 | E63: 1 | F63: 93 | G63: 95 | H63: 188 | I63: 88 | J63: 89 | K63: 177 | L63: 91 | M63: 95 | N63: 186 | O63: 551 | P63: 94 | Q63: 94 | R63: 91 | S63: 94 | T63: 95 | U63: 84 | V63: 552
A64: 259 | B64: Coltin J. Rice | C64: WVU | D64: 1 | E64: 0 | F64: 95 | G64: 96 | H64: 191 | I64: 74 | J64: 73 | K64: 147 | L64: 84 | M64: 80 | N64: 164 | O64: 502 | P64: 0 | Q64: 0 | R64: 0 | S64: 0 | T64: 0 | U64: 0 | V64: 0
A65: 260 | B65: Nathanial M. Cimono | C65: WVU | D65: 1 | E65: 1 | F65: 94 | G65: 92 | H65: 186 | I65: 85 | J65: 86 | K65: 171 | L65: 96 | M65: 84 | N65: 180 | O65: 537 | P65: 98 | Q65: 95 | R65: 91 | S65: 96 | T65: 95 | U65: 94 | V65: 569
A66: 261 | B66: Wesley M. Meyer | C66: UW-Oshkosh | D66: 1 | E66: 1 | F66: 96 | G66: 94 | H66: 190 | I66: 58 | J66: 55 | K66: 113 | L66: 82 | M66: 77 | N66: 159 | O66: 462 | P66: 52 | Q66: 81 | R66: 85 | S66: 82 | T66: 87 | U66: 80 | V66: 467
A67: 262 | B67: Jamee M Warner | C67: UW-Oshkosh | D67: 1 | E67: 1 | F67: 94 | G67: 94 | H67: 188 | I67: 83 | J67: 82 | K67: 165 | L67: 80 | M67: 79 | N67: 159 | O67: 512 | P67: 93 | Q67: 93 | R67: 95 | S67: 89 | T67: 91 | U67: 93 | V67: 554
A68: 263 | B68: Nick A. Kartechner | C68: UW-Oshkosh | D68: 1 | E68: 1 | F68: 94 | G68: 94 | H68: 188 | I68: 86 | J68: 83 | K68: 169 | L68: 88 | M68: 89 | N68: 177 | O68: 534 | P68: 84 | Q68: 93 | R68: 92 | S68: 88 | T68: 93 | U68: 87 | V68: 537
A69: 264 | B69: David M. Wieczorek | C69: UW-Oshkosh | D69: 1 | E69: 1 | F69: 94 | G69: 96 | H69: 190 | I69: 85 | J69: 88 | K69: 173 | L69: 89 | M69: 87 | N69: 176 | O69: 539 | P69: 91 | Q69: 92 | R69: 87 | S69: 94 | T69: 90 | U69: 88 | V69: 542
A70: 265 | B70: Troy E. Vigil | C70: New Mexico Tech | D70: 0 | E70: 0 | F70: 93 | G70: 93 | H70: 186 | I70: 63 | J70: 76 | K70: 139 | L70: 73 | M70: 74 | N70: =SUM(L70:M70) -> 147 | O70: =SUM(H70+K70+N70) -> 472 | P70: 79 | Q70: 91 | R70: 92 | S70: 90 | T70: 92 | U70: 93 | V70: 537
A71: 266 | B71: Cory D. Miller | C71: Central New Mexico Comm. College | D71: 0 | E71: 0 | F71: 96 | G71: 92 | H71: 188 | I71: 92 | J71: 93 | K71: 185 | L71: 91 | M71: 90 | N71: 181 | O71: 554 | P71: 95 | Q71: 97 | R71: 97 | S71: 99 | T71: 96 | U71: 97 | V71: 581
A72: 267 | B72: Georgia Yarbrough | C72: CPCC | D72: 0 | E72: 0 | F72: 93 | G72: 98 | H72: 191 | I72: 84 | J72: 90 | K72: 174 | L72: 95 | M72: 91 | N72: 186 | O72: 551 | P72: 95 | Q72: 95 | R72: 97 | S72: 97 | T72: 99 | U72: 95 | V72: =SUM(P72:U72) -> 578
A73: 268 | B73: Matt Summerson | C73: Penn State | D73: 1 | E73: 1 | F73: 96 | G73: 92 | H73: 188 | I73: 76 | J73: 79 | K73: 155 | L73: 87 | M73: 80 | N73: 167 | O73: 510 | P73: 89 | Q73: 92 | R73: 92 | S73: 82 | T73: 81 | U73: 88 | V73: 524
A74: 269 | B74: Paul McFarland | C74: Penn State | D74: 1 | E74: 1 | F74: 94 | G74: 86 | H74: 180 | I74: 71 | J74: 74 | K74: 145 | L74: 85 | M74: 93 | N74: 178 | O74: 503 | P74: 82 | Q74: 82 | R74: 87 | S74: 85 | T74: 85 | U74: 82 | V74: 503
A75: 270 | B75: Thomas Rominski | C75: Penn State | D75: 1 | E75: 1 | F75: 92 | G75: 91 | H75: 183 | I75: 84 | J75: 89 | K75: 173 | L75: 85 | M75: 88 | N75: 173 | O75: 529 | P75: 90 | Q75: 93 | R75: 89 | S75: 80 | T75: 94 | U75: 83 | V75: 529
A76: 271 | B76: Lauren Thompson | C76: Penn State | D76: 1 | E76: 1 | F76: 95 | G76: 93 | H76: 188 | I76: 86 | J76: 89 | K76: 175 | L76: 89 | M76: 90 | N76: 179 | O76: 542 | P76: 96 | Q76: 96 | R76: 96 | S76: 94 | T76: 92 | U76: 94 | V76: 568
A77: 272 | B77: Wade Stroda | C77: KSU | D77: 0 | E77: 0 | F77: 96 | G77: 94 | H77: 190 | I77: 89 | J77: 94 | K77: 183 | L77: 98 | M77: 91 | N77: 189 | O77: 562 | P77: 94 | Q77: 92 | R77: 93 | S77: 93 | T77: 95 | U77: 95 | V77: 562
A78: 273 | B78: Madeleine Godwin | C78: Thomas Nelson Comm College | D78: 0 | E78: 0 | F78: 97 | G78: 95 | H78: 192 | I78: 92 | J78: 94 | K78: 186 | L78: 92 | M78: 95 | N78: 187 | O78: 565 | P78: 99 | Q78: 99 | R78: 97 | S78: 99 | T78: 96 | U78: 98 | V78: 588
A79: 274 | B79: Faith Price | C79: Georgia Military College-Bulldogs | D79: 0 | E79: 1 | F79: 92 | G79: 86 | H79: =SUM(F79:G79) -> 178 | I79: 86 | J79: 84 | K79: =SUM(I79:J79) -> 170 | L79: 82 | M79: 86 | N79: 168 | O79: 516 | P79: 92 | Q79: 91 | R79: 96 | S79: 92 | T79: 94 | U79: 94 | V79: 559
A80: 275 | B80: Destin Owens | C80: Georgia Military College-Bulldogs | D80: 0 | E80: 1 | F80: 0 | G80: 0 | H80: 0 | I80: 0 | J80: 0 | K80: 0 | L80: 0 | M80: 0 | N80: 0 | O80: 0 | P80: 88 | Q80: 85 | R80: 87 | S80: 91 | T80: 91 | U80: 89 | V80: 531
A81: 276 | B81: Khalil Morrell | C81: Georgia Military College-Bulldogs | D81: 0 | E81: 1 | F81: 0 | G81: 0 | H81: 0 | I81: 0 | J81: 0 | K81: 0 | L81: 0 | M81: 0 | N81: 0 | O81: 0 | P81: 90 | Q81: 95 | R81: 91 | S81: 94 | T81: 92 | U81: 92 | V81: 554
A82: 277 | B82: Tucker Easter | C82: Georgia Military College-Bulldogs | D82: 0 | E82: 1 | F82: 94 | G82: 92 | H82: 186 | I82: 75 | J82: 72 | K82: 147 | L82: 86 | M82: 84 | N82: 170 | O82: 503 | P82: 89 | Q82: 87 | R82: 91 | S82: 91 | T82: 89 | U82: 94 | V82: 541
A83: 278 | B83: Samantha McLeod | C83: Georgia Military College-ROTC | D83: 1 | E83: 1 | F83: 76 | G83: 68 | H83: 144 | I83: 58 | J83: 66 | K83: 124 | L83: 74 | M83: 78 | N83: 152 | O83: 420 | P83: 78 | Q83: 86 | R83: 81 | S83: 85 | T83: 90 | U83: 90 | V83: 510
A84: 279 | B84: Tyler Willingham | C84: Georgia Military College-ROTC | D84: 1 | E84: 1 | F84: 96 | G84: 92 | H84: 188 | I84: 83 | J84: 85 | K84: 168 | L84: 92 | M84: 84 | N84: 176 | O84: 532 | P84: 94 | Q84: 92 | R84: 90 | S84: 95 | T84: 90 | U84: 92 | V84: 553
A85: 280 | B85: Keila Outen | C85: Georgia Military College-ROTC | D85: 1 | E85: 1 | F85: 90 | G85: 88 | H85: =SUM(F85:G85) -> 178 | I85: 90 | J85: 88 | K85: =SUM(I85:J85) -> 178 | L85: 86 | M85: 88 | N85: 174 | O85: 530 | P85: 93 | Q85: 91 | R85: 92 | S85: 92 | T85: 95 | U85: 93 | V85: =SUM(P85:U85) -> 556
A86: 281 | B86: Drae Robinson | C86: Georgia Military College-ROTC | D86: 1 | E86: 1 | F86: 82 | G86: 92 | H86: 174 | I86: 71 | J86: 67 | K86: 138 | L86: 72 | M86: 71 | N86: 143 | O86: 455 | P86: 91 | Q86: 91 | R86: 84 | S86: 86 | T86: 94 | U86: 80 | V86: 526
A87: 282 | B87: Alexander Bapties | C87: Southside Virginia Comm College | D87: 0 | E87: 0 | F87: 94 | G87: 91 | H87: 185 | I87: 89 | J87: 85 | K87: 174 | L87: 86 | M87: 84 | N87: =SUM(L87:M87) -> 170 | O87: =SUM(H87+K87+N87) -> 529 | P87: 90 | Q87: 95 | R87: 95 | S87: 97 | T87: 93 | U87: 89 | V87: 559

Sheet SB Ind
A1: 2015 National College Club Championship
A2: Smallbore Rifle Individual Championship
A4: FINAL BULLETIN
A5: COMP# | B5: Competitor | C5: College | D5: SB | E5: AR | F5: P-1 | G5: P-2 | H5: Prone | I5: S-1 | J5: S-2 | K5: Standing | L5: K-1 | M5: K-2 | N5: Kneeling | O5: SB AGG | P5: AWARD
A6: 273 | B6: Madeleine Godwin | C6: Thomas Nelson Comm College | D6: 0 | E6: 0 | F6: 97 | G6: 95 | H6: =SUM(F6:G6) -> 192 | I6: 92 | J6: 94 | K6: =SUM(I6:J6) -> 186 | L6: 92 | M6: 95 | N6: =SUM(L6:M6) -> 187 | O6: =SUM(H6+K6+N6) -> 565 | P6: 1st
A7: 272 | B7: Wade Stroda | C7: KSU | D7: 0 | E7: 0 | F7: 96 | G7: 94 | H7: 190 | I7: 89 | J7: 94 | K7: 183 | L7: 98 | M7: 91 | N7: 189 | O7: 562 | P7: 2nd
A8: 247 | B8: Rachel M Mangen | C8: Clemson | D8: 1 | E8: 1 | F8: 94 | G8: 97 | H8: 191 | I8: 91 | J8: 89 | K8: 180 | L8: 97 | M8: 93 | N8: 190 | O8: 561 | P8: 3rd
A9: 211 | B9: John Finegan | C9: U of Ill. C/U | D9: 0 | E9: 0 | F9: 97 | G9: 96 | H9: 193 | I9: 85 | J9: 90 | K9: 175 | L9: 93 | M9: 94 | N9: 187 | O9: 555
A10: 266 | B10: Cory D. Miller | C10: Central New Mexico Comm. College | D10: 0 | E10: 0 | F10: 96 | G10: 92 | H10: 188 | I10: 92 | J10: 93 | K10: 185 | L10: 91 | M10: 90 | N10: 181 | O10: 554
A11: 267 | B11: Georgia Yarbrough | C11: CPCC | D11: 0 | E11: 0 | F11: 93 | G11: 98 | H11: 191 | I11: 84 | J11: 90 | K11: 174 | L11: 95 | M11: 91 | N11: 186 | O11: 551
A12: 258 | B12: Anthony M. Cali | C12: WVU | D12: 1 | E12: 1 | F12: 93 | G12: 95 | H12: 188 | I12: 88 | J12: 89 | K12: 177 | L12: 91 | M12: 95 | N12: 186 | O12: 551
A13: 242 | B13: Aaron Ward | C13: University of Michigan | D13: 1 | E13: 1 | F13: 93 | G13: 96 | H13: 189 | I13: 86 | J13: 93 | K13: 179 | L13: 89 | M13: 91 | N13: 180 | O13: 548
A14: 271 | B14: Lauren Thompson | C14: Penn State | D14: 1 | E14: 1 | F14: 95 | G14: 93 | H14: 188 | I14: 86 | J14: 89 | K14: 175 | L14: 89 | M14: 90 | N14: 179 | O14: 542
A15: 264 | B15: David M. Wieczorek | C15: UW-Oshkosh | D15: 1 | E15: 1 | F15: 94 | G15: 96 | H15: 190 | I15: 85 | J15: 88 | K15: 173 | L15: 89 | M15: 87 | N15: 176 | O15: 539
A16: 210 | B16: Charlotte Gullquist | C16: Lincoln Christian | D16: 0 | E16: 0 | F16: 0 | G16: 0 | H16: 0 | I16: 0 | J16: 0 | K16: 0 | L16: 0 | M16: 0 | N16: 0 | O16: 0
A17: 212 | B17: Bennett E. Christianson | C17: ND State College of Science | D17: 0 | E17: 0 | F17: 96 | G17: 98 | H17: 194 | I17: 84 | J17: 87 | K17: 171 | L17: 86 | M17: 87 | N17: 173 | O17: 538
A18: 241 | B18: Anne Sullivan | C18: University of Michigan | D18: 1 | E18: 1 | F18: 91 | G18: 93 | H18: 184 | I18: 87 | J18: 88 | K18: 175 | L18: 87 | M18: 91 | N18: 178 | O18: 537
A19: 260 | B19: Nathanial M. Cimono | C19: WVU | D19: 1 | E19: 1 | F19: 94 | G19: 92 | H19: 186 | I19: 85 | J19: 86 | K19: 171 | L19: 96 | M19: 84 | N19: 180 | O19: 537
A20: 214 | B20: LaCrisha D. Meyer | C20: NDSU | D20: 0 | E20: 1 | F20: 0 | G20: 0 | H20: 0 | I20: 0 | J20: 0 | K20: 0 | L20: 0 | M20: 0 | N20: 0 | O20: 0
A21: 215 | B21: Samantha J. Holweger | C21: NDSU | D21: 0 | E21: 1 | F21: 0 | G21: 0 | H21: 0 | I21: 0 | J21: 0 | K21: 0 | L21: 0 | M21: 0 | N21: 0 | O21: 0
A22: 263 | B22: Nick A. Kartechner | C22: UW-Oshkosh | D22: 1 | E22: 1 | F22: 94 | G22: 94 | H22: 188 | I22: 86 | J22: 83 | K22: 169 | L22: 88 | M22: 89 | N22: 177 | O22: 534
A23: 226 | B23: Elizabeth M. Harty | C23: University of Michigan | D23: 0 | E23: 1 | F23: 95 | G23: 95 | H23: 190 | I23: 87 | J23: 83 | K23: 170 | L23: 89 | M23: 84 | N23: 173 | O23: 533
A24: 218 | B24: Alex M. Heinle | C24: NDSU | D24: 0 | E24: 1 | F24: 0 | G24: 0 | H24: 0 | I24: 0 | J24: 0 | K24: 0 | L24: 0 | M24: 0 | N24: 0 | O24: 0
A25: 250 | B25: Kevin M. Tuten | C25: Clemson | D25: 1 | E25: 1 | F25: 94 | G25: 94 | H25: 188 | I25: 85 | J25: 86 | K25: 171 | L25: 85 | M25: 88 | N25: 173 | O25: 532
A26: 220 | B26: Bryce K. Lynne | C26: NDSU | D26: 0 | E26: 1 | F26: 0 | G26: 0 | H26: 0 | I26: 0 | J26: 0 | K26: 0 | L26: 0 | M26: 0 | N26: 0 | O26: 0
A27: 279 | B27: Tyler Willingham | C27: Georgia Military College-ROTC | D27: 1 | E27: 1 | F27: 96 | G27: 92 | H27: 188 | I27: 83 | J27: 85 | K27: 168 | L27: 92 | M27: 84 | N27: 176 | O27: 532 | P27: 1st ROTC
A28: 280 | B28: Keila Outen | C28: Georgia Military College-ROTC | D28: 1 | E28: 1 | F28: 90 | G28: 88 | H28: 178 | I28: 90 | J28: 88 | K28: 178 | L28: 86 | M28: 88 | N28: 174 | O28: 530 | P28: 2nd ROTC
A29: 282 | B29: Alexander Bapties | C29: Southside Virginia Comm College | D29: 0 | E29: 0 | F29: 94 | G29: 91 | H29: 185 | I29: 89 | J29: 85 | K29: 174 | L29: 86 | M29: 84 | N29: 170 | O29: 529
A30: 270 | B30: Thomas Rominski | C30: Penn State | D30: 1 | E30: 1 | F30: 92 | G30: 91 | H30: 183 | I30: 84 | J30: 89 | K30: 173 | L30: 85 | M30: 88 | N30: 173 | O30: 529
A31: 255 | B31: Taylor D. Renick | C31: WVU | D31: 1 | E31: 1 | F31: 92 | G31: 97 | H31: 189 | I31: 76 | J31: 80 | K31: 156 | L31: 89 | M31: 92 | N31: 181 | O31: 526
A32: 206 | B32: Nathan Haines | C32: Purdue | D32: 1 | E32: 1 | F32: 94 | G32: 95 | H32: 189 | I32: 87 | J32: 80 | K32: 167 | L32: 92 | M32: 78 | N32: 170 | O32: 526
A33: 233 | B33: Megan Chen | C33: University of Michigan | D33: 0 | E33: 0 | F33: 89 | G33: 95 | H33: 184 | I33: 80 | J33: 78 | K33: 158 | L33: 90 | M33: 89 | N33: 179 | O33: 521
A34: 202 | B34: Mat Amore | C34: Purdue | D34: 1 | E34: 1 | F34: 96 | G34: 94 | H34: 190 | I34: 78 | J34: 74 | K34: 152 | L34: 93 | M34: 85 | N34: 178 | O34: 520
A35: 240 | B35: Gerald J. St James II | C35: University of Michigan | D35: 0 | E35: 0 | F35: 93 | G35: 91 | H35: 184 | I35: 79 | J35: 76 | K35: 155 | L35: 91 | M35: 89 | N35: 180 | O35: 519
A36: 248 | B36: Geoffry D. Graves | C36: Clemson | D36: 1 | E36: 1 | F36: 93 | G36: 96 | H36: 189 | I36: 84 | J36: 80 | K36: 164 | L36: 73 | M36: 91 | N36: 164 | O36: 517
A37: 274 | B37: Faith Price | C37: Georgia Military College-Bulldogs | D37: 0 | E37: 1 | F37: 92 | G37: 86 | H37: 178 | I37: 86 | J37: 84 | K37: 170 | L37: 82 | M37: 86 | N37: 168 | O37: 516
A38: 228 | B38: Will Kerkstra | C38: University of Michigan | D38: 0 | E38: 0 | F38: 94 | G38: 95 | H38: =SUM(F38:G38) -> 189 | I38: 75 | J38: 78 | K38: =SUM(I38:J38) -> 153 | L38: 85 | M38: 88 | N38: =SUM(L38:M38) -> 173 | O38: =SUM(H38+K38+N38) -> 515
A39: 252 | B39: Marlee N. Reynolds | C39: Akron-Zips Rifle Club | D39: 1 | E39: 1 | F39: 93 | G39: 91 | H39: 184 | I39: 75 | J39: 84 | K39: 159 | L39: 92 | M39: 80 | N39: 172 | O39: 515
A40: 200 | B40: Charles M. Beaver | C40: Purdue | D40: 1 | E40: 1 | F40: 95 | G40: 93 | H40: 188 | I40: 73 | J40: 81 | K40: 154 | L40: 82 | M40: 90 | N40: 172 | O40: 514
A41: 262 | B41: Jamee M Warner | C41: UW-Oshkosh | D41: 1 | E41: 1 | F41: 94 | G41: 94 | H41: 188 | I41: 83 | J41: 82 | K41: 165 | L41: 80 | M41: 79 | N41: 159 | O41: 512
A42: 236 | B42: Ying Yi Liu | C42: University of Michigan | D42: 1 | E42: 1 | F42: 93 | G42: 91 | H42: 184 | I42: 71 | J42: 84 | K42: 155 | L42: 87 | M42: 86 | N42: 173 | O42: 512
A43: 268 | B43: Matt Summerson | C43: Penn State | D43: 1 | E43: 1 | F43: 96 | G43: 92 | H43: 188 | I43: 76 | J43: 79 | K43: 155 | L43: 87 | M43: 80 | N43: 167 | O43: 510
A44: 225 | B44: Alex R. Plimpton | C44: ISU-ROTC | D44: 1 | E44: 1 | F44: 96 | G44: 95 | H44: 191 | I44: 73 | J44: 80 | K44: 153 | L44: 85 | M44: 80 | N44: 165 | O44: 509 | P44: 3rd ROTC
A45: 237 | B45: Nichole Constine | C45: University of Michigan | D45: 0 | E45: 0 | F45: 94 | G45: 90 | H45: 184 | I45: 74 | J45: 85 | K45: 159 | L45: 83 | M45: 83 | N45: 166 | O45: 509
A46: 208 | B46: Devan Baker | C46: Purdue | D46: 0 | E46: 0 | F46: 94 | G46: 95 | H46: 189 | I46: 81 | J46: 73 | K46: 154 | L46: 82 | M46: 81 | N46: 163 | O46: 506
A47: 235 | B47: Marissa Brodbeck | C47: University of Michigan | D47: 0 | E47: 0 | F47: 90 | G47: 92 | H47: 182 | I47: 81 | J47: 74 | K47: 155 | L47: 88 | M47: 80 | N47: 168 | O47: 505
A48: 277 | B48: Tucker Easter | C48: Georgia Military College-Bulldogs | D48: 0 | E48: 1 | F48: 94 | G48: 92 | H48: 186 | I48: 75 | J48: 72 | K48: 147 | L48: 86 | M48: 84 | N48: 170 | O48: 503
A49: 269 | B49: Paul McFarland | C49: Penn State | D49: 1 | E49: 1 | F49: 94 | G49: 86 | H49: 180 | I49: 71 | J49: 74 | K49: 145 | L49: 85 | M49: 93 | N49: 178 | O49: 503
A50: 259 | B50: Coltin J. Rice | C50: WVU | D50: 1 | E50: 0 | F50: 95 | G50: 96 | H50: 191 | I50: 74 | J50: 73 | K50: 147 | L50: 84 | M50: 80 | N50: 164 | O50: 502
A51: 251 | B51: Joseph W. Hendricks | C51: Akron-Zips Rifle Club | D51: 1 | E51: 1 | F51: 94 | G51: 90 | H51: 184 | I51: 85 | J51: 85 | K51: 170 | L51: 77 | M51: 70 | N51: 147 | O51: 501
A52: 222 | B52: Zachary O. Chism | C52: ISU-ROTC | D52: 1 | E52: 1 | F52: 92 | G52: 91 | H52: 183 | I52: 66 | J52: 79 | K52: 145 | L52: 91 | M52: 81 | N52: 172 | O52: 500
A53: 219 | B53: Logan J. Berg | C53: NDSU | D53: 0 | E53: 0 | F53: 89 | G53: 93 | H53: 182 | I53: 73 | J53: 69 | K53: 142 | L53: 86 | M53: 89 | N53: 175 | O53: 499
A54: 213 | B54: Kyle Boster | C54: NDSU | D54: 1 | E54: 0 | F54: 96 | G54: 80 | H54: 176 | I54: 78 | J54: 75 | K54: 153 | L54: 85 | M54: 85 | N54: 170 | O54: 499
A55: 205 | B55: Lake A. Yoke | C55: Purdue | D55: 1 | E55: 1 | F55: 94 | G55: 95 | H55: 189 | I55: 71 | J55: 66 | K55: 137 | L55: 86 | M55: 86 | N55: 172 | O55: 498
A56: 257 | B56: Abigail R. Bache | C56: WVU | D56: 0 | E56: 0 | F56: 95 | G56: 95 | H56: 190 | I56: 77 | J56: 76 | K56: 153 | L56: 77 | M56: 77 | N56: 154 | O56: 497
A57: 204 | B57: Addie M. Walters | C57: Purdue | D57: 0 | E57: 0 | F57: 88 | G57: 94 | H57: 182 | I57: 76 | J57: 69 | K57: 145 | L57: 86 | M57: 84 | N57: 170 | O57: 497
A58: 229 | B58: William Scola | C58: University of Michigan | D58: 0 | E58: 0 | F58: 90 | G58: 93 | H58: 183 | I58: 68 | J58: 73 | K58: 141 | L58: 86 | M58: 81 | N58: 167 | O58: 491
A59: 224 | B59: Ian C. Marquez | C59: ISU-ROTC | D59: 1 | E59: 1 | F59: 94 | G59: 89 | H59: 183 | I59: 68 | J59: 71 | K59: 139 | L59: 87 | M59: 82 | N59: 169 | O59: 491
A60: 207 | B60: Ryan Reichert | C60: Purdue | D60: 0 | E60: 0 | F60: 93 | G60: 94 | H60: 187 | I60: 65 | J60: 66 | K60: 131 | L60: 83 | M60: 88 | N60: 171 | O60: 489
A61: 246 | B61: Christine E. Beck | C61: Clemson | D61: 1 | E61: 1 | F61: 89 | G61: 87 | H61: 176 | I61: 78 | J61: 70 | K61: 148 | L61: 85 | M61: 80 | N61: 165 | O61: 489
A62: 256 | B62: Nathan E.Banta | C62: WVU | D62: 0 | E62: 1 | F62: 0 | G62: 0 | H62: 0 | I62: 0 | J62: 0 | K62: 0 | L62: 0 | M62: 0 | N62: 0 | O62: 0
A63: 209 | B63: Alexander S. Venturino | C63: Purdue | D63: 0 | E63: 0 | F63: 88 | G63: 92 | H63: 180 | I63: 65 | J63: 82 | K63: 147 | L63: 82 | M63: 78 | N63: 160 | O63: 487
A64: 239 | B64: Katie Wilcoxson | C64: University of Michigan | D64: 1 | E64: 0 | F64: 92 | G64: 96 | H64: 188 | I64: 78 | J64: 70 | K64: 148 | L64: 77 | M64: 70 | N64: 147 | O64: 483
A65: 234 | B65: Sarah Park | C65: University of Michigan | D65: 0 | E65: 0 | F65: 92 | G65: 93 | H65: 185 | I65: 71 | J65: 64 | K65: 135 | L65: 91 | M65: 70 | N65: 161 | O65: 481
A66: 201 | B66: Nicholas P Demsher | C66: Purdue | D66: 0 | E66: 0 | F66: 90 | G66: 88 | H66: 178 | I66: 72 | J66: 72 | K66: 144 | L66: 82 | M66: 77 | N66: 159 | O66: 481
A67: 227 | B67: Amanda L. Trevino | C67: University of Michigan | D67: 0 | E67: 0 | F67: 92 | G67: 94 | H67: 186 | I67: 62 | J67: 60 | K67: 122 | L67: 88 | M67: 83 | N67: 171 | O67: 479
A68: 221 | B68: Robert Nelson II | C68: NDSU | D68: 1 | E68: 0 | F68: 87 | G68: 78 | H68: 165 | I68: 71 | J68: 70 | K68: 141 | L68: 87 | M68: 82 | N68: 169 | O68: 475
A69: 243 | B69: Isabel A. Cusack | C69: University of Michigan | D69: 0 | E69: 0 | F69: 79 | G69: 84 | H69: 163 | I69: 79 | J69: 76 | K69: 155 | L69: 74 | M69: 82 | N69: 156 | O69: 474
A70: 230 | B70: Hunter L. Benitez | C70: University of Michigan | D70: 0 | E70: 0 | F70: 91 | G70: 90 | H70: =SUM(F70:G70) -> 181 | I70: 72 | J70: 65 | K70: =SUM(I70:J70) -> 137 | L70: 75 | M70: 80 | N70: =SUM(L70:M70) -> 155 | O70: =SUM(H70+K70+N70) -> 473
A71: 265 | B71: Troy E. Vigil | C71: New Mexico Tech | D71: 0 | E71: 0 | F71: 93 | G71: 93 | H71: 186 | I71: 63 | J71: 76 | K71: 139 | L71: 73 | M71: 74 | N71: 147 | O71: 472
A72: 261 | B72: Wesley M. Meyer | C72: UW-Oshkosh | D72: 1 | E72: 1 | F72: 96 | G72: 94 | H72: 190 | I72: 58 | J72: 55 | K72: 113 | L72: 82 | M72: 77 | N72: 159 | O72: 462
A73: 223 | B73: Alyssa L. Hirsch | C73: ISU-ROTC | D73: 1 | E73: 1 | F73: 90 | G73: 91 | H73: 181 | I73: 68 | J73: 72 | K73: 140 | L73: 69 | M73: 71 | N73: 140 | O73: 461
A74: 232 | B74: Jay W. Patrick | C74: University of Michigan | D74: 0 | E74: 0 | F74: 90 | G74: 96 | H74: 186 | I74: 60 | J74: 66 | K74: 126 | L74: 82 | M74: 66 | N74: 148 | O74: 460
A75: 238 | B75: Windy Zhu | C75: University of Michigan | D75: 0 | E75: 0 | F75: 91 | G75: 76 | H75: 167 | I75: 72 | J75: 55 | K75: 127 | L75: 90 | M75: 76 | N75: 166 | O75: 460
A76: 281 | B76: Drae Robinson | C76: Georgia Military College-ROTC | D76: 1 | E76: 1 | F76: 82 | G76: 92 | H76: 174 | I76: 71 | J76: 67 | K76: 138 | L76: 72 | M76: 71 | N76: 143 | O76: 455
A77: 244 | B77: Travis T. Burch | C77: University of Michigan | D77: 0 | E77: 0 | F77: 87 | G77: 87 | H77: 174 | I77: 58 | J77: 63 | K77: 121 | L77: 80 | M77: 76 | N77: 156 | O77: 451
A78: 203 | B78: Cecily M. Keihn | C78: Purdue | D78: 0 | E78: 0 | F78: 88 | G78: 82 | H78: 170 | I78: 76 | J78: 71 | K78: 147 | L78: 68 | M78: 66 | N78: 134 | O78: 451
A79: 216 | B79: Kellen M. Erickson | C79: NDSU | D79: 1 | E79: 0 | F79: 90 | G79: 94 | H79: 184 | I79: 57 | J79: 59 | K79: 116 | L79: 79 | M79: 69 | N79: 148 | O79: 448
A80: 231 | B80: Rolf Bates | C80: University of Michigan | D80: 0 | E80: 0 | F80: 89 | G80: 92 | H80: 181 | I80: 68 | J80: 60 | K80: 128 | L80: 68 | M80: 69 | N80: 137 | O80: 446
A81: 275 | B81: Destin Owens | C81: Georgia Military College-Bulldogs | D81: 0 | E81: 1 | F81: 0 | G81: 0 | H81: 0 | I81: 0 | J81: 0 | K81: 0 | L81: 0 | M81: 0 | N81: 0 | O81: 0
A82: 276 | B82: Khalil Morrell | C82: Georgia Military College-Bulldogs | D82: 0 | E82: 1 | F82: 0 | G82: 0 | H82: 0 | I82: 0 | J82: 0 | K82: 0 | L82: 0 | M82: 0 | N82: 0 | O82: 0
A83: 249 | B83: Brent Parker | C83: Clemson | D83: 0 | E83: 0 | F83: 76 | G83: 86 | H83: 162 | I83: 67 | J83: 65 | K83: 132 | L83: 68 | M83: 72 | N83: 140 | O83: 434
A84: 278 | B84: Samantha McLeod | C84: Georgia Military College-ROTC | D84: 1 | E84: 1 | F84: 76 | G84: 68 | H84: 144 | I84: 58 | J84: 66 | K84: 124 | L84: 74 | M84: 78 | N84: 152 | O84: 420
A85: 253 | B85: Josh S. Hoffman | C85: Akron-Zips Rifle Club | D85: 1 | E85: 1 | F85: 79 | G85: 82 | H85: 161 | I85: 41 | J85: 58 | K85: 99 | L85: 69 | M85: 80 | N85: 149 | O85: 409
A86: 245 | B86: Rohit S. Palayekar | C86: University of Michigan | D86: 0 | E86: 0 | F86: 69 | G86: 69 | H86: 138 | I86: 64 | J86: 62 | K86: 126 | L86: 70 | M86: 64 | N86: 134 | O86: 398
A87: 254 | B87: Christopher D. Catalano | C87: Akron-Zips Rifle Club | D87: 1 | E87: 1 | F87: 81 | G87: 84 | H87: 165 | I87: 50 | J87: 45 | K87: 95 | L87: 64 | M87: 64 | N87: 128 | O87: 388
A88: 217 | B88: Levi J. Joraanstad | C88: NDSU | D88: 1 | E88: 0 | F88: 84 | G88: 81 | H88: 165 | I88: 47 | J88: 34 | K88: 81 | L88: 55 | M88: 69 | N88: 124 | O88: 370

Sheet SB Teams
A1: =Data!$A$1 -> 2015 National College Club Championship
A2: Smallbore Rifle Individual Championship
A4: FINAL BULLETIN
A5: Sum of Field1
A6: College | B6: SB | C6: Competitor | D6: Total | E6: Award
A7: WVU | D7: 2116 | E7: 1st
B8: 1 | C8: Anthony M. Cali | D8: 551
C9: Coltin J. Rice | D9: 502
C10: Nathanial M. Cimono | D10: 537
C11: Taylor D. Renick | D11: 526
A13: Clemson | D13: 2099 | E13: 2nd
B14: 1 | C14: Christine E. Beck | D14: 489
C15: Geoffry D. Graves | D15: 517
C16: Kevin M. Tuten | D16: 532
C17: Rachel M Mangen | D17: 561
A19: Penn State | D19: 2084 | E19: 3rd
B20: 1 | C20: Lauren Thompson | D20: 542
C21: Matt Summerson | D21: 510
C22: Paul McFarland | D22: 503
C23: Thomas Rominski | D23: 529
A25: University of Michigan | D25: 2080
B26: 1 | C26: Aaron Ward | D26: 548
C27: Anne Sullivan | D27: 537
C28: Katie Wilcoxson | D28: 483
C29: Ying Yi Liu | D29: 512
A31: Purdue | D31: 2058
B32: 1 | C32: Charles M. Beaver | D32: 514
C33: Lake A. Yoke | D33: 498
C34: Mat Amore | D34: 520
C35: Nathan Haines | D35: 526
A37: UW-Oshkosh | D37: 2047
B38: 1 | C38: David M. Wieczorek | D38: 539
C39: Jamee M Warner | D39: 512
C40: Nick A. Kartechner | D40: 534
C41: Wesley M. Meyer | D41: 462
A43: ISU-ROTC | D43: 1961 | E43: 1st ROTC
B44: 1 | C44: Alex R. Plimpton | D44: 509
C45: Alyssa L. Hirsch | D45: 461
C46: Ian C. Marquez | D46: 491
C47: Zachary O. Chism | D47: 500
A49: Georgia Military College-ROTC | D49: 1937
B50: 1 | C50: Drae Robinson | D50: 455
C51: Keila Outen | D51: 530
C52: Samantha McLeod | D52: 420
C53: Tyler Willingham | D53: 532
A55: Akron-Zips Rifle Club | D55: 1813
B56: 1 | C56: Christopher D. Catalano | D56: 388
C57: Joseph W. Hendricks | D57: 501
C58: Josh S. Hoffman | D58: 409
C59: Marlee N. Reynolds | D59: 515
A61: NDSU | D61: 1792
B62: 1 | C62: Kellen M. Erickson | D62: 448
C63: Kyle Boster | D63: 499
C64: Levi J. Joraanstad | D64: 370
C65: Robert Nelson II | D65: 475

Sheet Air Individual
A1: 2015 National College Club Championship
A2: Air Rifle Individual Championship
A4: PRELIMINARY BULLETIN
A5: COMP# | B5: Competitor | C5: College | D5: SB | E5: AR | F5: P-1 | G5: P-2 | H5: Prone | I5: S-1 | J5: S-2 | K5: Standing | L5: K-1 | M5: K-2 | N5: Kneeling | O5: SB AGG | P5: A-1 | Q5: A-2 | R5: A-3 | S5: A-4 | T5: A-5 | U5: A-6 | V5: Air | W5: Awards
A6: 273 | B6: Madeleine Godwin | C6: Thomas Nelson Comm College | D6: 0 | E6: 0 | F6: 97 | G6: 95 | H6: =SUM(F6:G6) -> 192 | I6: 92 | J6: 94 | K6: =SUM(I6:J6) -> 186 | L6: 92 | M6: 95 | N6: =SUM(L6:M6) -> 187 | O6: =SUM(H6+K6+N6) -> 565 | P6: 99 | Q6: 99 | R6: 97 | S6: 99 | T6: 96 | U6: 98 | V6: =SUM(P6:U6) -> 588 | W6: 1st
A7: 266 | B7: Cory D. Miller | C7: Central New Mexico Comm. College | D7: 0 | E7: 0 | F7: 96 | G7: 92 | H7: 188 | I7: 92 | J7: 93 | K7: 185 | L7: 91 | M7: 90 | N7: 181 | O7: 554 | P7: 95 | Q7: 97 | R7: 97 | S7: 99 | T7: 96 | U7: 97 | V7: 581 | W7: 2nd
A8: 267 | B8: Georgia Yarbrough | C8: CPCC | D8: 0 | E8: 0 | F8: 93 | G8: 98 | H8: 191 | I8: 84 | J8: 90 | K8: 174 | L8: 95 | M8: 91 | N8: 186 | O8: 551 | P8: 95 | Q8: 95 | R8: 97 | S8: 97 | T8: 99 | U8: 95 | V8: 578 | W8: 3rd
A9: 247 | B9: Rachel M Mangan | C9: Clemson | D9: 1 | E9: 1 | F9: 94 | G9: 97 | H9: 191 | I9: 91 | J9: 89 | K9: 180 | L9: 97 | M9: 93 | N9: 190 | O9: 561 | P9: 95 | Q9: 95 | R9: 96 | S9: 95 | T9: 97 | U9: 98 | V9: 576
A10: 236 | B10: Ying Yi Liu | C10: University of Michigan | D10: 1 | E10: 1 | F10: 93 | G10: 91 | H10: 184 | I10: 71 | J10: 84 | K10: 155 | L10: 87 | M10: 86 | N10: 173 | O10: 512 | P10: 97 | Q10: 94 | R10: 95 | S10: 97 | T10: 97 | U10: 96 | V10: 576
A11: 255 | B11: Taylor D. Renick | C11: WVU | D11: 1 | E11: 1 | F11: 92 | G11: 97 | H11: 189 | I11: 76 | J11: 80 | K11: 156 | L11: 89 | M11: 92 | N11: 181 | O11: 526 | P11: 95 | Q11: 96 | R11: 94 | S11: 95 | T11: 94 | U11: 96 | V11: 570
A12: 260 | B12: Nathanial M. Cimono | C12: WVU | D12: 1 | E12: 1 | F12: 94 | G12: 92 | H12: 186 | I12: 85 | J12: 86 | K12: 171 | L12: 96 | M12: 84 | N12: 180 | O12: 537 | P12: 98 | Q12: 95 | R12: 91 | S12: 96 | T12: 95 | U12: 94 | V12: 569
A13: 206 | B13: Nathan Haines | C13: Purdue | D13: 1 | E13: 1 | F13: 94 | G13: 95 | H13: 189 | I13: 87 | J13: 80 | K13: 167 | L13: 92 | M13: 78 | N13: 170 | O13: 526 | P13: 94 | Q13: 97 | R13: 96 | S13: 96 | T13: 93 | U13: 93 | V13: 569
A14: 242 | B14: Aaron Ward | C14: University of Michigan | D14: 1 | E14: 1 | F14: 93 | G14: 96 | H14: 189 | I14: 86 | J14: 93 | K14: 179 | L14: 89 | M14: 91 | N14: 180 | O14: 548 | P14: 93 | Q14: 94 | R14: 97 | S14: 92 | T14: 98 | U14: 94 | V14: 568
A15: 271 | B15: Lauren Thompson | C15: Penn State | D15: 1 | E15: 1 | F15: 95 | G15: 93 | H15: 188 | I15: 86 | J15: 89 | K15: 175 | L15: 89 | M15: 90 | N15: 179 | O15: 542 | P15: 96 | Q15: 96 | R15: 96 | S15: 94 | T15: 92 | U15: 94 | V15: 568
A16: 250 | B16: Kevin M. Tuten | C16: Clemson | D16: 1 | E16: 1 | F16: 94 | G16: 94 | H16: 188 | I16: 85 | J16: 86 | K16: 171 | L16: 85 | M16: 88 | N16: 173 | O16: 532 | P16: 95 | Q16: 95 | R16: 94 | S16: 93 | T16: 94 | U16: 94 | V16: 565
A17: 241 | B17: Anne Sullivan | C17: University of Michigan | D17: 1 | E17: 1 | F17: 91 | G17: 93 | H17: 184 | I17: 87 | J17: 88 | K17: 175 | L17: 87 | M17: 91 | N17: 178 | O17: 537 | P17: 93 | Q17: 92 | R17: 97 | S17: 95 | T17: 92 | U17: 94 | V17: 563
A18: 272 | B18: Wade Stroda | C18: KSU | D18: 0 | E18: 0 | F18: 96 | G18: 94 | H18: 190 | I18: 89 | J18: 94 | K18: 183 | L18: 98 | M18: 91 | N18: 189 | O18: 562 | P18: 94 | Q18: 92 | R18: 93 | S18: 93 | T18: 95 | U18: 95 | V18: 562
A19: 226 | B19: Elizabeth M. Harty | C19: University of Michigan | D19: 0 | E19: 1 | F19: 95 | G19: 95 | H19: 190 | I19: 87 | J19: 83 | K19: 170 | L19: 89 | M19: 84 | N19: 173 | O19: 533 | P19: 95 | Q19: 94 | R19: 97 | S19: 92 | T19: 91 | U19: 92 | V19: 561
A20: 274 | B20: Faith Price | C20: Georgia Military College-Bulldogs | D20: 0 | E20: 1 | F20: 92 | G20: 86 | H20: 178 | I20: 86 | J20: 84 | K20: 170 | L20: 82 | M20: 86 | N20: 168 | O20: 516 | P20: 92 | Q20: 91 | R20: 96 | S20: 92 | T20: 94 | U20: 94 | V20: 559
A21: 282 | B21: Alexander Bapties | C21: Southside Virginia Comm College | D21: 0 | E21: 0 | F21: 94 | G21: 91 | H21: 185 | I21: 89 | J21: 85 | K21: 174 | L21: 86 | M21: 84 | N21: 170 | O21: 529 | P21: 90 | Q21: 95 | R21: 95 | S21: 97 | T21: 93 | U21: 89 | V21: 559
A22: 216 | B22: Kellen M. Erickson | C22: NDSU | D22: 1 | E22: 0 | F22: 90 | G22: 94 | H22: 184 | I22: 57 | J22: 59 | K22: 116 | L22: 79 | M22: 69 | N22: 148 | O22: 448 | P22: 0 | Q22: 0 | R22: 0 | S22: 0 | T22: 0 | U22: 0 | V22: 0
A23: 217 | B23: Levi J. Joraanstad | C23: NDSU | D23: 1 | E23: 0 | F23: 84 | G23: 81 | H23: 165 | I23: 47 | J23: 34 | K23: 81 | L23: 55 | M23: 69 | N23: 124 | O23: 370 | P23: 0 | Q23: 0 | R23: 0 | S23: 0 | T23: 0 | U23: 0 | V23: 0
A24: 246 | B24: Christine E. Beck | C24: Clemson | D24: 1 | E24: 1 | F24: 89 | G24: 87 | H24: 176 | I24: 78 | J24: 70 | K24: 148 | L24: 85 | M24: 80 | N24: 165 | O24: 489 | P24: 92 | Q24: 94 | R24: 94 | S24: 92 | T24: 92 | U24: 94 | V24: 558
A25: 256 | B25: Nathan E.Banta | C25: WVU | D25: 0 | E25: 1 | F25: 0 | G25: 0 | H25: 0 | I25: 0 | J25: 0 | K25: 0 | L25: 0 | M25: 0 | N25: 0 | O25: 0 | P25: 92 | Q25: 97 | R25: 86 | S25: 92 | T25: 94 | U25: 95 | V25: 556
A26: 280 | B26: Keila Outen | C26: Georgia Military College-ROTC | D26: 1 | E26: 1 | F26: 90 | G26: 88 | H26: 178 | I26: 90 | J26: 88 | K26: 178 | L26: 86 | M26: 88 | N26: 174 | O26: 530 | P26: 93 | Q26: 91 | R26: 92 | S26: 92 | T26: 95 | U26: 93 | V26: 556 | W26: 1st ROTC
A27: 210 | B27: Charlotte Gullquist | C27: Lincoln Christian | D27: 0 | E27: 0 | F27: 0 | G27: 0 | H27: 0 | I27: 0 | J27: 0 | K27: 0 | L27: 0 | M27: 0 | N27: 0 | O27: 0 | P27: 92 | Q27: 94 | R27: 90 | S27: 95 | T27: 94 | U27: 91 | V27: 556
A28: 212 | B28: Bennett E. Christianson | C28: ND State College of Science | D28: 0 | E28: 0 | F28: 96 | G28: 98 | H28: 194 | I28: 84 | J28: 87 | K28: 171 | L28: 86 | M28: 87 | N28: 173 | O28: 538 | P28: 92 | Q28: 92 | R28: 95 | S28: 90 | T28: 93 | U28: 93 | V28: 555
A29: 252 | B29: Marlee N. Reynolds | C29: Akron-Zips Rifle Club | D29: 1 | E29: 1 | F29: 93 | G29: 91 | H29: 184 | I29: 75 | J29: 84 | K29: 159 | L29: 92 | M29: 80 | N29: 172 | O29: 515 | P29: 90 | Q29: 95 | R29: 95 | S29: 94 | T29: 92 | U29: 89 | V29: 555
A30: 262 | B30: Jamee M Warner | C30: UW-Oshkosh | D30: 1 | E30: 1 | F30: 94 | G30: 94 | H30: 188 | I30: 83 | J30: 82 | K30: 165 | L30: 80 | M30: 79 | N30: 159 | O30: 512 | P30: 93 | Q30: 93 | R30: 95 | S30: 89 | T30: 91 | U30: 93 | V30: 554
A31: 276 | B31: Khalil Morrell | C31: Georgia Military College-Bulldogs | D31: 0 | E31: 1 | F31: 0 | G31: 0 | H31: 0 | I31: 0 | J31: 0 | K31: 0 | L31: 0 | M31: 0 | N31: 0 | O31: 0 | P31: 90 | Q31: 95 | R31: 91 | S31: 94 | T31: 92 | U31: 92 | V31: 554
A32: 279 | B32: Tyler Willingham | C32: Georgia Military College-ROTC | D32: 1 | E32: 1 | F32: 96 | G32: 92 | H32: 188 | I32: 83 | J32: 85 | K32: 168 | L32: 92 | M32: 84 | N32: 176 | O32: 532 | P32: 94 | Q32: 92 | R32: 90 | S32: 95 | T32: 90 | U32: 92 | V32: 553 | W32: 2nd ROTC
A33: 248 | B33: Geoffry D. Graves | C33: Clemson | D33: 1 | E33: 1 | F33: 93 | G33: 96 | H33: 189 | I33: 84 | J33: 80 | K33: 164 | L33: 73 | M33: 91 | N33: 164 | O33: 517 | P33: 95 | Q33: 90 | R33: 94 | S33: 90 | T33: 94 | U33: 90 | V33: 553
A34: 258 | B34: Anthony M. Cali | C34: WVU | D34: 1 | E34: 1 | F34: 93 | G34: 95 | H34: 188 | I34: 88 | J34: 89 | K34: 177 | L34: 91 | M34: 95 | N34: 186 | O34: 551 | P34: 94 | Q34: 94 | R34: 91 | S34: 94 | T34: 95 | U34: 84 | V34: 552
A35: 240 | B35: Gerald J. St James II | C35: University of Michigan | D35: 0 | E35: 0 | F35: 93 | G35: 91 | H35: 184 | I35: 79 | J35: 76 | K35: 155 | L35: 91 | M35: 89 | N35: 180 | O35: 519 | P35: 89 | Q35: 91 | R35: 92 | S35: 92 | T35: 94 | U35: 92 | V35: 550
A36: 211 | B36: John Finegan | C36: U of Ill. C/U | D36: 0 | E36: 0 | F36: 97 | G36: 96 | H36: 193 | I36: 85 | J36: 90 | K36: 175 | L36: 93 | M36: 94 | N36: 187 | O36: 555 | P36: 93 | Q36: 93 | R36: 98 | S36: 91 | T36: 84 | U36: 91 | V36: 550
A37: 251 | B37: Joseph W. Hendricks | C37: Akron-Zips Rifle Club | D37: 1 | E37: 1 | F37: 94 | G37: 90 | H37: 184 | I37: 85 | J37: 85 | K37: 170 | L37: 77 | M37: 70 | N37: 147 | O37: 501 | P37: 90 | Q37: 96 | R37: 91 | S37: 92 | T37: 88 | U37: 92 | V37: 549
A38: 237 | B38: Nichole Constine | C38: University of Michigan | D38: 0 | E38: 0 | F38: 94 | G38: 90 | H38: =SUM(F38:G38) -> 184 | I38: 74 | J38: 85 | K38: =SUM(I38:J38) -> 159 | L38: 83 | M38: 83 | N38: =SUM(L38:M38) -> 166 | O38: =SUM(H38+K38+N38) -> 509 | P38: 88 | Q38: 89 | R38: 90 | S38: 93 | T38: 93 | U38: 93 | V38: =SUM(P38:U38) -> 546
A39: 239 | B39: Katie Wilcoxson | C39: University of Michigan | D39: 1 | E39: 0 | F39: 92 | G39: 96 | H39: 188 | I39: 78 | J39: 70 | K39: 148 | L39: 77 | M39: 70 | N39: 147 | O39: 483 | P39: 89 | Q39: 89 | R39: 92 | S39: 94 | T39: 91 | U39: 91 | V39: 546
A40: 238 | B40: Windy Zhu | C40: University of Michigan | D40: 0 | E40: 0 | F40: 91 | G40: 76 | H40: 167 | I40: 72 | J40: 55 | K40: 127 | L40: 90 | M40: 76 | N40: 166 | O40: 460 | P40: 91 | Q40: 88 | R40: 90 | S40: 88 | T40: 93 | U40: 95 | V40: 545
A41: 233 | B41: Megan Chen | C41: University of Michigan | D41: 0 | E41: 0 | F41: 89 | G41: 95 | H41: 184 | I41: 80 | J41: 78 | K41: 158 | L41: 90 | M41: 89 | N41: 179 | O41: 521 | P41: 90 | Q41: 89 | R41: 91 | S41: 94 | T41: 89 | U41: 91 | V41: 544
A42: 235 | B42: Marissa Brodbeck | C42: University of Michigan | D42: 0 | E42: 0 | F42: 90 | G42: 92 | H42: 182 | I42: 81 | J42: 74 | K42: 155 | L42: 88 | M42: 80 | N42: 168 | O42: 505 | P42: 92 | Q42: 92 | R42: 93 | S42: 91 | T42: 90 | U42: 86 | V42: 544
A43: 202 | B43: Mat Amore | C43: Purdue | D43: 1 | E43: 1 | F43: 96 | G43: 94 | H43: 190 | I43: 78 | J43: 74 | K43: 152 | L43: 93 | M43: 85 | N43: 178 | O43: 520 | P43: 90 | Q43: 91 | R43: 89 | S43: 90 | T43: 91 | U43: 91 | V43: 542
A44: 264 | B44: David M. Wieczorek | C44: UW-Oshkosh | D44: 1 | E44: 1 | F44: 94 | G44: 96 | H44: 190 | I44: 85 | J44: 88 | K44: 173 | L44: 89 | M44: 87 | N44: 176 | O44: 539 | P44: 91 | Q44: 92 | R44: 87 | S44: 94 | T44: 90 | U44: 88 | V44: 542
A45: 277 | B45: Tucker Easter | C45: Georgia Military College-Bulldogs | D45: 0 | E45: 1 | F45: 94 | G45: 92 | H45: 186 | I45: 75 | J45: 72 | K45: 147 | L45: 86 | M45: 84 | N45: 170 | O45: 503 | P45: 89 | Q45: 87 | R45: 91 | S45: 91 | T45: 89 | U45: 94 | V45: 541
A46: 221 | B46: Robert Nelson II | C46: NDSU | D46: 1 | E46: 0 | F46: 87 | G46: 78 | H46: 165 | I46: 71 | J46: 70 | K46: 141 | L46: 87 | M46: 82 | N46: 169 | O46: 475 | P46: 91 | Q46: 89 | R46: 90 | S46: 91 | T46: 88 | U46: 92 | V46: 541
A47: 265 | B47: Troy E. Vigil | C47: New Mexico Tech | D47: 0 | E47: 0 | F47: 93 | G47: 93 | H47: 186 | I47: 63 | J47: 76 | K47: 139 | L47: 73 | M47: 74 | N47: 147 | O47: 472 | P47: 79 | Q47: 91 | R47: 92 | S47: 90 | T47: 92 | U47: 93 | V47: 537
A48: 263 | B48: Nick A. Kartechner | C48: UW-Oshkosh | D48: 1 | E48: 1 | F48: 94 | G48: 94 | H48: 188 | I48: 86 | J48: 83 | K48: 169 | L48: 88 | M48: 89 | N48: 177 | O48: 534 | P48: 84 | Q48: 93 | R48: 92 | S48: 88 | T48: 93 | U48: 87 | V48: 537
A49: 203 | B49: Cecily M. Keihn | C49: Purdue | D49: 0 | E49: 0 | F49: 88 | G49: 82 | H49: 170 | I49: 76 | J49: 71 | K49: 147 | L49: 68 | M49: 66 | N49: 134 | O49: 451 | P49: 92 | Q49: 89 | R49: 91 | S49: 94 | T49: 84 | U49: 87 | V49: 537
A50: 208 | B50: Devan Baker | C50: Purdue | D50: 0 | E50: 0 | F50: 94 | G50: 95 | H50: 189 | I50: 81 | J50: 73 | K50: 154 | L50: 82 | M50: 81 | N50: 163 | O50: 506 | P50: 85 | Q50: 90 | R50: 85 | S50: 91 | T50: 92 | U50: 93 | V50: 536
A51: 243 | B51: Isabel A. Cusack | C51: University of Michigan | D51: 0 | E51: 0 | F51: 79 | G51: 84 | H51: 163 | I51: 79 | J51: 76 | K51: 155 | L51: 74 | M51: 82 | N51: 156 | O51: 474 | P51: 87 | Q51: 86 | R51: 88 | S51: 93 | T51: 87 | U51: 92 | V51: 533
A52: 200 | B52: Charles M. Beaver | C52: Purdue | D52: 1 | E52: 1 | F52: 95 | G52: 93 | H52: 188 | I52: 73 | J52: 81 | K52: 154 | L52: 82 | M52: 90 | N52: 172 | O52: 514 | P52: 91 | Q52: 85 | R52: 89 | S52: 89 | T52: 89 | U52: 90 | V52: 533
A53: 205 | B53: Lake A. Yoke | C53: Purdue | D53: 1 | E53: 1 | F53: 94 | G53: 95 | H53: 189 | I53: 71 | J53: 66 | K53: 137 | L53: 86 | M53: 86 | N53: 172 | O53: 498 | P53: 88 | Q53: 88 | R53: 89 | S53: 86 | T53: 93 | U53: 88 | V53: 532
A54: 275 | B54: Destin Owens | C54: Georgia Military College-Bulldogs | D54: 0 | E54: 1 | F54: 0 | G54: 0 | H54: 0 | I54: 0 | J54: 0 | K54: 0 | L54: 0 | M54: 0 | N54: 0 | O54: 0 | P54: 88 | Q54: 85 | R54: 87 | S54: 91 | T54: 91 | U54: 89 | V54: 531
A55: 227 | B55: Amanda L. Trevino | C55: University of Michigan | D55: 0 | E55: 0 | F55: 92 | G55: 94 | H55: 186 | I55: 62 | J55: 60 | K55: 122 | L55: 88 | M55: 83 | N55: 171 | O55: 479 | P55: 84 | Q55: 90 | R55: 88 | S55: 89 | T55: 91 | U55: 87 | V55: 529
A56: 270 | B56: Thomas Rominski | C56: Penn State | D56: 1 | E56: 1 | F56: 92 | G56: 91 | H56: 183 | I56: 84 | J56: 89 | K56: 173 | L56: 85 | M56: 88 | N56: 173 | O56: 529 | P56: 90 | Q56: 93 | R56: 89 | S56: 80 | T56: 94 | U56: 83 | V56: 529
A57: 234 | B57: Sarah Park | C57: University of Michigan | D57: 0 | E57: 0 | F57: 92 | G57: 93 | H57: 185 | I57: 71 | J57: 64 | K57: 135 | L57: 91 | M57: 70 | N57: 161 | O57: 481 | P57: 88 | Q57: 92 | R57: 84 | S57: 89 | T57: 86 | U57: 88 | V57: 527
A58: 222 | B58: Zachary O. Chism | C58: ISU-ROTC | D58: 1 | E58: 1 | F58: 92 | G58: 91 | H58: 183 | I58: 66 | J58: 79 | K58: 145 | L58: 91 | M58: 81 | N58: 172 | O58: 500 | P58: 92 | Q58: 83 | R58: 88 | S58: 86 | T58: 92 | U58: 85 | V58: 526 | W58: 3rd ROTC
A59: 281 | B59: Drae Robinson | C59: Georgia Military College-ROTC | D59: 1 | E59: 1 | F59: 82 | G59: 92 | H59: 174 | I59: 71 | J59: 67 | K59: 138 | L59: 72 | M59: 71 | N59: 143 | O59: 455 | P59: 91 | Q59: 91 | R59: 84 | S59: 86 | T59: 94 | U59: 80 | V59: 526
A60: 268 | B60: Matt Summerson | C60: Penn State | D60: 1 | E60: 1 | F60: 96 | G60: 92 | H60: 188 | I60: 76 | J60: 79 | K60: 155 | L60: 87 | M60: 80 | N60: 167 | O60: 510 | P60: 89 | Q60: 92 | R60: 92 | S60: 82 | T60: 81 | U60: 88 | V60: 524
A61: 204 | B61: Addie M. Walters | C61: Purdue | D61: 0 | E61: 0 | F61: 88 | G61: 94 | H61: 182 | I61: 76 | J61: 69 | K61: 145 | L61: 86 | M61: 84 | N61: 170 | O61: 497 | P61: 84 | Q61: 85 | R61: 90 | S61: 92 | T61: 85 | U61: 86 | V61: 522
A62: 219 | B62: Logan J. Berg | C62: NDSU | D62: 0 | E62: 0 | F62: 89 | G62: 93 | H62: 182 | I62: 73 | J62: 69 | K62: 142 | L62: 86 | M62: 89 | N62: 175 | O62: 499 | P62: 86 | Q62: 90 | R62: 84 | S62: 89 | T62: 79 | U62: 93 | V62: 521
A63: 257 | B63: Abigail R. Bache | C63: WVU | D63: 0 | E63: 0 | F63: 95 | G63: 95 | H63: 190 | I63: 77 | J63: 76 | K63: 153 | L63: 77 | M63: 77 | N63: 154 | O63: 497 | P63: 0 | Q63: 0 | R63: 0 | S63: 0 | T63: 0 | U63: 0 | V63: 0
A64: 232 | B64: Jay W. Patrick | C64: University of Michigan | D64: 0 | E64: 0 | F64: 90 | G64: 96 | H64: 186 | I64: 60 | J64: 66 | K64: 126 | L64: 82 | M64: 66 | N64: 148 | O64: 460 | P64: 81 | Q64: 90 | R64: 86 | S64: 89 | T64: 86 | U64: 89 | V64: 521
A65: 259 | B65: Coltin J. Rice | C65: WVU | D65: 1 | E65: 0 | F65: 95 | G65: 96 | H65: 191 | I65: 74 | J65: 73 | K65: 147 | L65: 84 | M65: 80 | N65: 164 | O65: 502 | P65: 0 | Q65: 0 | R65: 0 | S65: 0 | T65: 0 | U65: 0 | V65: 0
A66: 228 | B66: Will Kerkstra | C66: University of Michigan | D66: 0 | E66: 0 | F66: 94 | G66: 95 | H66: 189 | I66: 75 | J66: 78 | K66: 153 | L66: 85 | M66: 88 | N66: 173 | O66: 515 | P66: 84 | Q66: 91 | R66: 86 | S66: 83 | T66: 84 | U66: 92 | V66: 520
A67: 215 | B67: Samantha J. Holweger | C67: NDSU | D67: 0 | E67: 1 | F67: 0 | G67: 0 | H67: 0 | I67: 0 | J67: 0 | K67: 0 | L67: 0 | M67: 0 | N67: 0 | O67: 0 | P67: 87 | Q67: 90 | R67: 89 | S67: 85 | T67: 83 | U67: 86 | V67: 520
A68: 249 | B68: Brent Parker | C68: Clemson | D68: 0 | E68: 0 | F68: 76 | G68: 86 | H68: 162 | I68: 67 | J68: 65 | K68: 132 | L68: 68 | M68: 72 | N68: 140 | O68: 434 | P68: 90 | Q68: 88 | R68: 86 | S68: 87 | T68: 87 | U68: 77 | V68: 515
A69: 278 | B69: Samantha McLeod | C69: Georgia Military College-ROTC | D69: 1 | E69: 1 | F69: 76 | G69: 68 | H69: 144 | I69: 58 | J69: 66 | K69: 124 | L69: 74 | M69: 78 | N69: 152 | O69: 420 | P69: 78 | Q69: 86 | R69: 81 | S69: 85 | T69: 90 | U69: 90 | V69: 510
A70: 231 | B70: Rolf Bates | C70: University of Michigan | D70: 0 | E70: 0 | F70: 89 | G70: 92 | H70: =SUM(F70:G70) -> 181 | I70: 68 | J70: 60 | K70: =SUM(I70:J70) -> 128 | L70: 68 | M70: 69 | N70: =SUM(L70:M70) -> 137 | O70: =SUM(H70+K70+N70) -> 446 | P70: 74 | Q70: 91 | R70: 89 | S70: 80 | T70: 85 | U70: 90 | V70: =SUM(P70:U70) -> 509
A71: 224 | B71: Ian C. Marquez | C71: ISU-ROTC | D71: 1 | E71: 1 | F71: 94 | G71: 89 | H71: 183 | I71: 68 | J71: 71 | K71: 139 | L71: 87 | M71: 82 | N71: 169 | O71: 491 | P71: 86 | Q71: 80 | R71: 85 | S71: 87 | T71: 88 | U71: 81 | V71: 507
A72: 245 | B72: Rohit S. Palayekar | C72: University of Michigan | D72: 0 | E72: 0 | F72: 69 | G72: 69 | H72: 138 | I72: 64 | J72: 62 | K72: 126 | L72: 70 | M72: 64 | N72: 134 | O72: 398 | P72: 87 | Q72: 76 | R72: 85 | S72: 85 | T72: 88 | U72: 85 | V72: 506
A73: 220 | B73: Bryce K. Lynne | C73: NDSU | D73: 0 | E73: 1 | F73: 0 | G73: 0 | H73: 0 | I73: 0 | J73: 0 | K73: 0 | L73: 0 | M73: 0 | N73: 0 | O73: 0 | P73: 84 | Q73: 83 | R73: 85 | S73: 85 | T73: 85 | U73: 82 | V73: 504
A74: 225 | B74: Alex R. Plimpton | C74: ISU-ROTC | D74: 1 | E74: 1 | F74: 96 | G74: 95 | H74: 191 | I74: 73 | J74: 80 | K74: 153 | L74: 85 | M74: 80 | N74: 165 | O74: 509 | P74: 89 | Q74: 84 | R74: 81 | S74: 81 | T74: 84 | U74: 84 | V74: 503
A75: 229 | B75: William Scola | C75: University of Michigan | D75: 0 | E75: 0 | F75: 90 | G75: 93 | H75: 183 | I75: 68 | J75: 73 | K75: 141 | L75: 86 | M75: 81 | N75: 167 | O75: 491 | P75: 85 | Q75: 89 | R75: 81 | S75: 79 | T75: 86 | U75: 83 | V75: 503
A76: 269 | B76: Paul McFarland | C76: Penn State | D76: 1 | E76: 1 | F76: 94 | G76: 86 | H76: 180 | I76: 71 | J76: 74 | K76: 145 | L76: 85 | M76: 93 | N76: 178 | O76: 503 | P76: 82 | Q76: 82 | R76: 87 | S76: 85 | T76: 85 | U76: 82 | V76: 503
A77: 209 | B77: Alexander S. Venturino | C77: Purdue | D77: 0 | E77: 0 | F77: 88 | G77: 92 | H77: 180 | I77: 65 | J77: 82 | K77: 147 | L77: 82 | M77: 78 | N77: 160 | O77: 487 | P77: 84 | Q77: 83 | R77: 89 | S77: 85 | T77: 83 | U77: 79 | V77: 503
A78: 214 | B78: LaCrisha D. Meyer | C78: NDSU | D78: 0 | E78: 1 | F78: 0 | G78: 0 | H78: 0 | I78: 0 | J78: 0 | K78: 0 | L78: 0 | M78: 0 | N78: 0 | O78: 0 | P78: 91 | Q78: 82 | R78: 82 | S78: 85 | T78: 75 | U78: 81 | V78: 496
A79: 223 | B79: Alyssa L. Hirsch | C79: ISU-ROTC | D79: 1 | E79: 1 | F79: 90 | G79: 91 | H79: 181 | I79: 68 | J79: 72 | K79: 140 | L79: 69 | M79: 71 | N79: 140 | O79: 461 | P79: 84 | Q79: 86 | R79: 81 | S79: 85 | T79: 79 | U79: 80 | V79: 495
A80: 207 | B80: Ryan Reichert | C80: Purdue | D80: 0 | E80: 0 | F80: 93 | G80: 94 | H80: 187 | I80: 65 | J80: 66 | K80: 131 | L80: 83 | M80: 88 | N80: 171 | O80: 489 | P80: 78 | Q80: 75 | R80: 85 | S80: 84 | T80: 85 | U80: 86 | V80: 493
A81: 201 | B81: Nicholas P Demsher | C81: Purdue | D81: 0 | E81: 0 | F81: 90 | G81: 88 | H81: 178 | I81: 72 | J81: 72 | K81: 144 | L81: 82 | M81: 77 | N81: 159 | O81: 481 | P81: 75 | Q81: 86 | R81: 86 | S81: 84 | T81: 81 | U81: 78 | V81: 490
A82: 213 | B82: Kyle Boster | C82: NDSU | D82: 1 | E82: 0 | F82: 96 | G82: 80 | H82: 176 | I82: 78 | J82: 75 | K82: 153 | L82: 85 | M82: 85 | N82: 170 | O82: 499 | P82: 87 | Q82: 83 | R82: 91 | S82: 86 | T82: 63 | U82: 79 | V82: 489
A83: 244 | B83: Travis T. Burch | C83: University of Michigan | D83: 0 | E83: 0 | F83: 87 | G83: 87 | H83: 174 | I83: 58 | J83: 63 | K83: 121 | L83: 80 | M83: 76 | N83: 156 | O83: 451 | P83: 82 | Q83: 82 | R83: 84 | S83: 81 | T83: 81 | U83: 78 | V83: 488
A84: 218 | B84: Alex M. Heinle | C84: NDSU | D84: 0 | E84: 1 | F84: 0 | G84: 0 | H84: 0 | I84: 0 | J84: 0 | K84: 0 | L84: 0 | M84: 0 | N84: 0 | O84: 0 | P84: 83 | Q84: 84 | R84: 74 | S84: 71 | T84: 80 | U84: 86 | V84: 478
A85: 261 | B85: Wesley M. Meyer | C85: UW-Oshkosh | D85: 1 | E85: 1 | F85: 96 | G85: 94 | H85: 190 | I85: 58 | J85: 55 | K85: 113 | L85: 82 | M85: 77 | N85: 159 | O85: 462 | P85: 52 | Q85: 81 | R85: 85 | S85: 82 | T85: 87 | U85: 80 | V85: 467
A86: 230 | B86: Hunter L. Benitez | C86: University of Michigan | D86: 0 | E86: 0 | F86: 91 | G86: 90 | H86: 181 | I86: 72 | J86: 65 | K86: 137 | L86: 75 | M86: 80 | N86: 155 | O86: 473 | P86: 80 | Q86: 77 | R86: 84 | S86: 60 | T86: 71 | U86: 82 | V86: 454
A87: 254 | B87: Christopher D. Catalano | C87: Akron-Zips Rifle Club | D87: 1 | E87: 1 | F87: 81 | G87: 84 | H87: 165 | I87: 50 | J87: 45 | K87: 95 | L87: 64 | M87: 64 | N87: 128 | O87: 388 | P87: 70 | Q87: 72 | R87: 65 | S87: 72 | T87: 85 | U87: 76 | V87: 440
A88: 253 | B88: Josh S. Hoffman | C88: Akron-Zips Rifle Club | D88: 1 | E88: 1 | F88: 79 | G88: 82 | H88: 161 | I88: 41 | J88: 58 | K88: 99 | L88: 69 | M88: 80 | N88: 149 | O88: 409 | P88: 83 | Q88: 74 | R88: 59 | S88: 71 | T88: 61 | U88: 65 | V88: 413

Sheet Air Team
A1: =Data!$A$1 -> 2015 National College Club Championship
A2: Air Rifle Individual Championship
A4: PRELIMINARY BULLETIN
A5: Sum of Air
A6: College | B6: Competitor | C6: AR | D6: Total | E6: Award
A7: University of Michigan | D7: 2268 | E7: 1st
B8: Aaron Ward | C8: 1 | D8: 568
B9: Anne Sullivan | C9: 1 | D9: 563
B10: Ying Yi Liu | C10: 1 | D10: 576
B11: Elizabeth M. Harty | C11: 1 | D11: 561
A13: Clemson | D13: 2252 | E13: 2nd
B14: Christine E. Beck | C14: 1 | D14: 558
B15: Rachel M Mangen | C15: 1 | D15: 576
B16: Geoffry D. Graves | C16: 1 | D16: 553
B17: Kevin M. Tuten | C17: 1 | D17: 565
A19: WVU | D19: 2247 | E19: 3rd
B20: Taylor D. Renick | C20: 1 | D20: 570
B21: Nathan E.Banta | C21: 1 | D21: 556
B22: Anthony M. Cali | C22: 1 | D22: 552
B23: Nathanial M. Cimono | C23: 1 | D23: 569
A25: Georgia Military College-Bulldogs | D25: 2185
B26: Faith Price | C26: 1 | D26: 559
B27: Destin Owens | C27: 1 | D27: 531
B28: Khalil Morrell | C28: 1 | D28: 554
B29: Tucker Easter | C29: 1 | D29: 541
A31: Purdue | D31: 2176
B32: Mat Amore | C32: 1 | D32: 542
B33: Nathan Haines | C33: 1 | D33: 569
B34: Lake A. Yoke | C34: 1 | D34: 532
B35: Charles M. Beaver | C35: 1 | D35: 533
A37: Georgia Military College-ROTC | D37: 2145 | E37: 1st ROTC
B38: Samantha McLeod | C38: 1 | D38: 510
B39: Tyler Willingham | C39: 1 | D39: 553
B40: Keila Outen | C40: 1 | D40: 556
B41: Drae Robinson | C41: 1 | D41: 526
A43: Penn State | D43: 2124
B44: Matt Summerson | C44: 1 | D44: 524
B45: Paul McFarland | C45: 1 | D45: 503
B46: Thomas Rominski | C46: 1 | D46: 529
B47: Lauren Thompson | C47: 1 | D47: 568
A49: UW-Oshkosh | D49: 2100
B50: Wesley M. Meyer | C50: 1 | D50: 467
B51: Jamee M Warner | C51: 1 | D51: 554
B52: Nick A. Kartechner | C52: 1 | D52: 537
B53: David M. Wieczorek | C53: 1 | D53: 542
A55: ISU-ROTC | D55: 2031
B56: Alyssa L. Hirsch | C56: 1 | D56: 495
B57: Ian C. Marquez | C57: 1 | D57: 507
B58: Alex R. Plimpton | C58: 1 | D58: 503
B59: Zachary O. Chism | C59: 1 | D59: 526
A61: NDSU | D61: 1998
B62: LaCrisha D. Meyer | C62: 1 | D62: 496
B63: Samantha J. Holweger | C63: 1 | D63: 520
B64: Alex M. Heinle | C64: 1 | D64: 478
B65: Bryce K. Lynne | C65: 1 | D65: 504
A67: Akron-Zips Rifle Club | D67: 1957
B68: Joseph W. Hendricks | C68: 1 | D68: 549
B69: Marlee N. Reynolds | C69: 1 | D69: 555
B70: Josh S. Hoffman | C70: 1 | D70: 413
B71: Christopher D. Catalano | C71: 1 | D71: 440

Sheet Team Agg
A1: =Data!$A$1 -> 2015 National College Club Championship
A2: TEAM CHAMPIONSHIP
A3: FINAL BULLETIN
A4: Team | B4: SB | C4: AR | D4: Total | E4: Qual | F4: Qual
A5: WVU Rifle Club | B5: 2116 | C5: 2247 | D5: =SUM(B5+C5) -> 4363 | E5: Y | F5: Y | G5: Winner
A6: Clemson University | B6: 2099 | C6: 2252 | D6: 4351 | E6: Y | F6: Y | G6: 2nd
A7: University of Michigan | B7: 2080 | C7: 2268 | D7: 4348 | E7: Y | F7: Y | G7: 3rd
A8: Purdue University | B8: 2058 | C8: 2176 | D8: 4234 | E8: Y | F8: Y
A9: Penn State University | B9: 2084 | C9: 2124 | D9: 4208 | E9: Y | F9: Y
A10: U of Wisconsin-Oskosh | B10: 2047 | C10: 2100 | D10: 4147 | E10: Y | F10: Y
A11: Georga Military College-ROTC | B11: 1937 | C11: 2145 | D11: 4082 | E11: Y | F11: Y
A12: Illinois State University-ROTC | B12: 1961 | C12: 2031 | D12: 3992 | E12: Y | F12: Y
A13: North Dakota State U | B13: 1792 | C13: 1998 | D13: 3790 | E13: Y | F13: Y
A14: Akron Aips Rifle Club | B14: 1813 | C14: 1957 | D14: 3770 | E14: Y | F14: Y
A15: Georga Military College Varsity | B15: 0 | C15: 2185 | D15: 2185 | E15: Y | F15: Y

Sheet All Star Team
A1: 2015 NRA National Club All-Star Teams
A3: Smallbore All-Star Team
A4: Smallbore/Sectional | C4: Nat'l | D4: Sectional
A5: Individual | B5: College | C5: SB Rifle | D5: Score | E5: Total | F5: Average
A6: Madeleine Godwin | B6: Thomas Nelson Community College | C6: 565 | D6: 557 | E6: =SUM(C6:D6) -> 1122 | F6: =AVERAGE(C6:D6) -> 561
A7: Wade Stroda | B7: KSU | C7: 562 | D7: 550 | E7: =SUM(C7:D7) -> 1112 | F7: =AVERAGE(C7:D7) -> 556
A8: Rachel M. Mangen | B8: Clemson University | C8: 561 | D8: 564 | E8: 1125 | F8: 562.5
A9: John Finegan | B9: U of Ill. C/U | C9: 555 | D9: 553 | E9: 1108 | F9: 554
A10: Cory D. Miller | B10: Central New Mexico Community College | C10: 554 | D10: 559 | E10: 1113 | F10: 556.5
A13: SECOND TEAM Smallbore
A14: Individual | B14: College | C14: SB Rifle | D14: Sectional | E14: Total | F14: Average
A15: Aaron Ward | B15: University of Michigan Team | C15: 548 | D15: 556 | E15: =SUM(C15:D15) -> 1104 | F15: =AVERAGE(C15:D15) -> 552
A16: Georgia L. Yarbrough | B16: Central Piedmont Community College | C16: 551 | D16: 544 | E16: =SUM(C16:D16) -> 1095 | F16: =AVERAGE(C16:D16) -> 547.5
A17: Anthony M. Cali | B17: WVU | C17: 551 | D17: 536 | E17: =SUM(C17:D17) -> 1087 | F17: 543.5
A18: Lauren Thompson | B18: Penn State | C18: 542 | D18: 545 | E18: =SUM(C18:D18) -> 1087 | F18: 543.5
A19: Dave Wieczorek | B19: UW Oshkosh | C19: 539 | D19: 545 | E19: =SUM(C19:D19) -> 1084 | F19: =AVERAGE(C19:D19) -> 542
A21: Air Rifle All-Star Team
A22: Air Rifle/Sectional | C22: Nat'l | D22: Sectional
A23: Individual | B23: College | C23: Air Rifle | D23: Score | E23: Total | F23: Average
A24: Madeleine Godwin | B24: Thomas Nelson Comm. Coll | C24: 588 | D24: 586 | E24: =SUM(C24:D24) -> 1174 | F24: =AVERAGE(C24:D24) -> 587
A25: Cory D. Miller | B25: Central New Mexico Comm. College | C25: 581 | D25: 567 | E25: =SUM(C25:D25) -> 1148 | F25: =AVERAGE(C25:D25) -> 574
A26: Georgia Yarbrough | B26: CPCC | C26: 578 | D26: 573 | E26: =SUM(C26:D26) -> 1151 | F26: 575.5
A27: Rachel M Mangan | B27: Clemson | C27: 576 | D27: 575 | E27: =SUM(C27:D27) -> 1151 | F27: 575.5
A28: Ying Yi Liu | B28: University of Michigan | C28: 576 | D28: 579 | E28: =SUM(C28:D28) -> 1155 | F28: 577.5
A30: SECOND TEAM Air Rifle
A31: Individual | B31: College | C31: Air Rifle | D31: Sectional | E31: Total | F31: Average
A32: Taylor D. Renick | B32: WVU | C32: 570 | D32: 560 | E32: =SUM(C32:D32) -> 1130 | F32: =AVERAGE(C32:D32) -> 565
A33: Nathanial M. Cimono | B33: WVU | C33: 569 | D33: 574 | E33: =SUM(C33:D33) -> 1143 | F33: =AVERAGE(C33:D33) -> 571.5
A34: Nathan Haines | B34: Purdue | C34: 569 | D34: 547 | E34: =SUM(C34:D34) -> 1116 | F34: =AVERAGE(C34:D34) -> 558
A35: Aaron Ward | B35: University of Michigan | C35: 568 | D35: 578 | E35: =SUM(C35:D35) -> 1146 | F35: =AVERAGE(C35:D35) -> 573
A36: Anne Sullivan | B36: University of Michigan | C36: 563 | D36: 568 | E36: =SUM(C36:D36) -> 1131 | F36: =AVERAGE(C36:D36) -> 565.5

Sheet All Agg
A1: 2015 National College Club Championship
A2: Smallbore Rifle Individual Championship
A3: Grand Aggregate
A4: ### | B4: Competitor | C4: College | D4: SB | E4: AIR | F4: Total
A5: 273 | B5: Madeleine Godwin | C5: Thomas Nelson Comm College | D5: 565 | E5: 588 | F5: =SUM(D5:E5) -> 1153 | G5: 1st
A6: 247 | B6: Rachel M Mangen | C6: Clemson | D6: 561 | E6: 576 | F6: =SUM(D6:E6) -> 1137 | G6: 2nd
A7: 266 | B7: Cory D. Miller | C7: Central New Mexico Comm. College | D7: 554 | E7: 581 | F7: =SUM(D7:E7) -> 1135 | G7: 3rd
A8: 267 | B8: Georgia Yarbrough | C8: CPCC | D8: 551 | E8: 578 | F8: =SUM(D8:E8) -> 1129
A9: 272 | B9: Wade Stroda | C9: KSU | D9: 562 | E9: 562 | F9: =SUM(D9:E9) -> 1124
A10: 242 | B10: Aaron Ward | C10: University of Michigan | D10: 548 | E10: 568 | F10: =SUM(D10:E10) -> 1116
A11: 271 | B11: Lauren Thompson | C11: Penn State | D11: 542 | E11: 568 | F11: =SUM(D11:E11) -> 1110

Sheet Squadding
A1: 2015 NRA College Club Championship Squadding
D2: SB | F2: Air
A3: # | B3: Name | D3: Relay 1 | E3: Relay2 | F3: Relay1 | G3: Relay 2
A4: 245 | B4: Rohit S. Palyekar | C4: University of Michigan | E4: 7 | G4: 2
A5: 247 | B5: Rachel M Mangen | C5: Clemson | E5: 19 | G5: 3
A6: 248 | B6: Geoffry D. Graves | C6: Clemson | E6: 23 | G6: 4
A7: 246 | B7: Christine E. Beck | C7: Clemson | E7: 21 | G7: 5
A8: 277 | B8: Tucker Easter | C8: Georgia Military College | E8: 44 | G8: 6
A9: 250 | B9: Kevin N. Reynolds | C9: Clemson | E9: 22 | G9: 7
A10: 254 | B10: Christopher D. Cataland | C10: Akron | E10: 36 | G10: 8
A11: 249 | B11: Brent Parker | C11: Clemson | E11: 20 | G11: 9
A12: 252 | B12: Marlee N. Reynolds | C12: Akron | E12: 37 | G12: 10
A13: 271 | B13: Lauren Thompson | C13: Penn State | E13: 27 | G13: 11
A14: 260 | B14: Nathanial M. Cimono | C14: WVU | E14: 42 | G14: 12
A15: 259 | B15: Coltin J. Rice | C15: WVU | E15: 41 | G15: 13
A16: 268 | B16: Matt Summerson | C16: Penn State | E16: 26 | G16: 15
A17: 269 | B17: Paul McFarland | C17: Penn State | E17: 32 | G17: 16
A18: 267 | B18: Georgia Yarbrough | C18: CPCC | E18: 24 | G18: 17
A19: 266 | B19: Cory D. Miller | C19: Central New Mexico Comm. College | E19: 30 | G19: 18
A20: 270 | B20: Thomas Rominski | C20: Penn State | E20: 31 | G20: 19
A21: 280 | B21: Keil Outer | C21: Georgia Military College | D21: 46 | G21: 20
A22: 216 | B22: Kellen M. Erickson | C22: NDSU | D22: 39 | G22: 21
A23: 220 | B23: Bryce K. Lynn | C23: NDSU | F23: 39 | G23: 22
A24: 264 | B24: David M. Wieczorek | C24: UW-Oshkosh | D24: 35 | F24: 42 | G24: 23
A25: 214 | B25: LaCrisha D. Meyer | C25: NDSU | F25: 32 | G25: 24
A26: 215 | B26: Samantha J. Holweger | C26: NDSU | F26: 33 | G26: 25
A27: 263 | B27: Nick A. Kartechner | C27: UW-Oshkosh | D27: 45 | F27: 43 | G27: 26
A28: 232 | B28: Jay W. Patrick | C28: University of Michigan | E28: 16 | G28: 27
A29: 213 | B29: Kyle Boster | C29: NDSU | D29: 41 | F29: 35 | G29: 28
A30: 212 | B30: Bennett E. Christianson | C30: ND State College of Science | D30: 44 | F30: 41 | G30: 29
A31: 235 | B31: Marissa Brodbeck | C31: University of Michigan | E31: 10 | G31: 30
A32: 238 | B32: Windy Shu | C32: University of Michigan | E32: 11 | G32: 31
A33: 240 | B33: Gerald J. St James II | C33: University of Michigan | E33: 9 | G33: 32
A34: 237 | B34: Nicole Constine | C34: University of Michigan | E34: 15 | G34: 33
A35: 244 | B35: Travis T. Burh | C35: University of Michigan | E35: 17 | G35: 34
A36: 239 | B36: Katie Wilcasen | C36: University of Michigan | E36: 13 | G36: 35
A37: 265 | B37: Troy E. Vigil | C37: New Mexico Tech | E37: 29 | G37: 38
A38: 276 | B38: Khalil Morrell | C38: Georgia Military College | G38: 39
A39: 273 | B39: Madeleine Godwin | C39: Thomas Nelson Comm College | E39: 33 | G39: 40
A40: 278 | B40: Samantha McLeod | C40: Georgia Military College | D40: 38 | G40: 41
A41: 275 | B41: Destin Owens | C41: Georgia Military College | G41: 42
A42: 279 | B42: Tyler Willingham | C42: Georgia Military College | D42: 28 | G42: 43
A43: 209 | B43: Alexander S. Venturino | C43: Purdue | D43: 19 | F43: 2
A44: 208 | B44: Devon Baker | C44: Purdue | D44: 20 | F44: 3
A45: 201 | B45: Nicholas P Demsher | C45: Purdue | D45: 21 | F45: 4
A46: 206 | B46: Nathan Haines | C46: Purdue | D46: 22 | F46: 5
A47: 202 | B47: Mat Amore | C47: Purdue | D47: 23 | F47: 6
A48: 200 | B48: Charles M. Bever | C48: Purdue | D48: 24 | F48: 7
A49: 203 | B49: Cecily M. Keihn | C49: Purdue | D49: 25 | F49: 8
A50: 204 | B50: Addie M. Walter | C50: Purdue | D50: 26 | F50: 9
A51: 205 | B51: Lake A. Yoke | C51: Purdue | D51: 27 | F51: 10
A52: 207 | B52: Ryan Reichert | C52: Purdue | D52: 29 | F52: 11
A53: 261 | B53: Wesley M. Meyer | C53: UW-Oshkosh | D53: 36 | F53: 12
A54: 262 | B54: Jamee M Warner | C54: UW-Oshkosh | D54: 37 | F54: 13
A55: 210 | B55: Charlotte Gullquist | C55: Lincoln Christian | F55: 15
A56: 211 | B56: John Finegan | C56: U of Ill. C/U | D56: 34 | F56: 16
A57: 225 | B57: Alex R. Plimpton | C57: ISUROTC | D57: 33 | F57: 17
A58: 223 | B58: Alyssa L. Hirsch | C58: ISUROTC | D58: 32 | F58: 18
A59: 222 | B59: Zachary O. Chisom | C59: ISUROTC | D59: 30 | F59: 19
A60: 224 | B60: Ian C. Marquez | C60: ISUROTC | D60: 31 | F60: 20
A61: 226 | B61: Elizabeth M. Harty | C61: University of Michigan | D61: 9 | F61: 21
A62: 233 | B62: Megan Chen | C62: University of Michigan | D62: 10 | F62: 22
A63: 236 | B63: Ying Yi Liu | C63: University of Michigan | D63: 11 | F63: 23
A64: 231 | B64: Rolf Bates | C64: University of Michigan | D64: 12 | F64: 24
A65: 242 | B65: Aaron Ward | C65: University of Michigan | D65: 17 | F65: 25
A66: 241 | B66: Anne Sullivan | C66: University of Michigan | D66: 13 | F66: 26
A67: 243 | B67: Isobel A. Cusack | C67: University of Michigan | D67: 15 | F67: 27
A68: 227 | B68: Amanda L. Trevino | C68: University of Michigan | D68: 7 | F68: 28
A69: 234 | B69: Sara Park | C69: University of Michigan | D69: 14 | F69: 29
A70: 228 | B70: Will Kerkstra | C70: University of Michigan | D70: 16 | F70: 30
A71: 274 | B71: Faith Price | C71: Georgia Military College | E71: 8 | F71: 31
A72: 221 | B72: Robert Nelson II | C72: NDSU | D72: 42 | F72: 34
A73: 282 | B73: Alenander Bapties | C73: Southside Virginia Comm College | E73: 38 | F73: 36
A74: 218 | B74: Alex M. Heinie | C74: NDSU | F74: 38
A75: 219 | B75: Logan J. Berg | C75: NDSU | D75: 43 | F75: 40
A76: 217 | B76: Levi J. Joraansten | C76: NDSU | D76: 40
A77: 229 | B77: William Scola | C77: University of Michigan | E77: 12
A78: 230 | B78: Hunter L. Benitez | C78: University of Michigan | E78: 14
A79: 251 | B79: Joseph W. Hendricks | C79: Akron | E79: 34
A80: 253 | B80: Josh S. Hoffman | C80: Akron | E80: 35
A81: 255 | B81: Taylor D. Renick | C81: WVU | E81: 40
A82: 256 | B82: Nathan E.Banta | C82: WVU
A83: 257 | B83: Abigale R. Bache | C83: WVU | E83: 39
A84: 258 | B84: Anthony M. Cali | C84: WVU | E84: 43
A85: 272 | B85: Wade Stroda | C85: KSU | E85: 25
A86: 281 | B86: Drae Robinson | C86: Georgia Military College | D86: 8
